Cogmind - Beta 10 @@@ ROGUE MODE // 2020.09.18 @ 21:35:54 Player: Terminus Result: Fortifying 0b10! Performance ------------- Evolutions (9) 4500 Regions Visited (31) 6200 Robots Destroyed (373) 1865 Value Destroyed (18105) 18105 Prototype IDs (78) 1560 Alien Tech Used (7) 1400 Bonus (17124) 17124 TOTAL SCORE: 50754 Bonus ------- High Alert Combat Kills 985 Follower Combat Kills 2434 Network Hubs Disabled 200 Met Data Miner 300 Met Imprinter 300 Met Zhirov 300 A7 Reached Mainframe 300 Found Hidden Lab 3000 Scanned by Researcher 500 Destroyed MAIN.C Guards 500 Met MAIN.C 5000 Destroyed MAIN.C Shell 5000 Win 3000 Friendly Fire -4695 Cogmind --------- Core Integrity 1103/1600 Matter 700/800 Energy 1047/2450 System Corruption 6% Temperature Cool (0) Movement Hovering (48) Location By MAIN.C's Side Parts ------- > --- POWER (3) -------- Micro Fission Core Zero-point Reactor Zero-point Reactor > --- PROPULSION (4) --- Combat Linear Gravjet Combat Linear Gravjet Combat Linear Gravjet Combat Linear Gravjet > --- UTILITY (16) ----- Experimental Cooling System Large Storage Unit Large Storage Unit Experimental Energy Well Experimental Energy Well Experimental Matter Compressor Advanced Targeting Computer Advanced Targeting Computer Experimental Targeting Computer Experimental Targeting Computer Experimental Target Analyzer Experimental Core Analyzer Advanced Armor Integrity Analyzer Experimental Core Shielding Medium Regenerative Plating AEGIS Remote Shield > --- WEAPON (3) ------- Multirail Multirail Multirail > --- INVENTORY (16) --- Micro Fission Core Zero-point Reactor Combat Linear Gravjet Experimental Energy Well (1000) Experimental Energy Well (1000) Experimental Matter Compressor (500) Advanced Targeting Computer Experimental Targeting Computer AEGIS Remote Shield Cooled Nova Cannon Hypervelocity Railgun Helical Railgun Helical Railgun Helical Railgun Heavy Proton Missile Launcher CR-A16's Behemoth Slayer Peak State ------------ > --- POWER ------------ Zero-point Reactor Zero-point Reactor Zero-point Reactor > --- PROPULSION ------- Combat Linear Gravjet Combat Linear Gravjet Combat Linear Gravjet Combat Linear Gravjet > --- UTILITY ---------- Experimental Cooling System Large Storage Unit Large Storage Unit Advanced Energy Well Experimental Energy Well Experimental Matter Compressor Advanced Targeting Computer Experimental Target Analyzer Advanced Core Analyzer Advanced Armor Integrity Analyzer Advanced Weapon Cycler Advanced Transmission Jammer Advanced Phase Shifter Medium Regenerative Plating Experimental Force Field AEGIS Remote Shield > --- WEAPON ----------- Multirail Multirail Multirail > --- INVENTORY -------- Micro Fission Core Light Quantum Reactor Combat Linear Gravjet Experimental Sensor Array EM Dispersion Field Transdimensional Reconstructor Subatomic Replicator Compact HERF Cannon Cooled Nova Cannon Hypervelocity Railgun Multirail Heavy Proton Missile Launcher Heavy Proton Missile Launcher CR-A16's Behemoth Slayer [Rating: 232] Favorites ----------- Power Micro Fission Core Engine Heavy Ion Engine Power Core Micro Fission Core Reactor Quantum Reactor Propulsion Combat Linear Gravjet Treads Light Treads Leg Improved Carbon-fiber Leg Hover Unit Combat Linear Gravjet Utility Large Storage Unit Device Long-range Sensor Array Storage Large Storage Unit Processor Experimental Signal Interpreter Hackware Improved Hacking Suite Protection Medium Regenerative Plating Weapon Enhanced Autogun Energy Gun Medium Laser Energy Cannon Improved EM Pulse Cannon Ballistic Gun Enhanced Autogun Ballistic Cannon Improved Light Cannon Launcher Proton Missile Launcher Special Weapon Plasma Cutter Impact Weapon Core Stripper Slashing Weapon Axe Piercing Weapon CR-A16's Behemoth Slayer Build | -11 -10 -10 -9 -9 -8 -8 -7 -7 -7 -7 -6 -6 -6 -6 -6 -5 -5 -5 -5 -5 -5 -4 -4 -4 -3 -3 -2 -2 -2 -1 -1 ------- Run | Scr Mat Min Mat Min Mat Sto Fac Low Low Dat Pro Fac Low Low Zio Pro Fac Ext Cet Arc Hub Fac Arm Lab Res Tes Res Qua Sec Acc Com Slots Evolved 18 | . . . 2 . 2 . 2 . . . . 2 . . . . 2 . . . . 2 . . 2 . 2 . . 2 . Power 1 | . . . . . . . . . . . . 1 . . . . . . . . . . . . . . . . . . . Propulsion 2 | . . . . . 1 . . . . . . . . . . . 1 . . . . . . . . . . . . . . Utility 14 | . . . 2 . 1 . 2 . . . . 1 . . . . 1 . . . . 2 . . 2 . 2 . . 1 . Weapon 1 | . . . . . . . . . . . . . . . . . . . . . . . . . . . . . . 1 . Parts Attached 474 | 6 9 3 24 18 35 13 42 15 4 2 2 22 9 5 3 5 7 7 17 . 9 8 41 8 6 19 20 21 9 16 69 Power 52 | 1 1 . 2 2 1 1 4 1 . . . 5 . . . 1 1 2 . . . . 4 1 1 1 4 5 . . 14 Engine 14 | 1 1 . 2 2 1 1 3 1 . . . 2 . . . . . . . . . . . . . . . . . . . Core 19 | . . . . . . . 1 . . . . 2 . . . 1 1 2 . . . . 2 1 . . 1 3 . . 5 Reactor 19 | . . . . . . . . . . . . 1 . . . . . . . . . . 2 . 1 1 3 2 . . 9 Propulsion 61 | 2 2 1 5 5 8 2 8 3 . . . 6 . . . . 1 . . . 1 4 9 . . 1 . . . 1 2 Treads 5 | . . . 2 . . . 1 2 . . . . . . . . . . . . . . . . . . . . . . . Leg 34 | 2 2 1 3 5 8 2 7 1 . . . 3 . . . . . . . . . . . . . . . . . . . Wheel . | . . . . . . . . . . . . . . . . . . . . . . . . . . . . . . . . Hover 22 | . . . . . . . . . . . . 3 . . . . 1 . . . 1 4 9 . . 1 . . . 1 2 Flight . | . . . . . . . . . . . . . . . . . . . . . . . . . . . . . . . . Utility 174 | 1 3 . 4 3 8 5 14 4 4 . . 6 4 2 1 2 4 4 8 . 1 3 11 5 4 6 13 9 6 5 34 Device 83 | . . . . . 4 . 7 2 3 . . 3 2 1 1 1 1 2 1 . 1 . 5 5 2 3 6 6 4 3 20 Storage 21 | 1 3 . 1 . 1 2 . . . . . . . . . . . 1 1 . . 1 . . . 2 1 1 . 1 5 Processor 15 | . . . . . . . 1 . . . . 1 . . . . 1 . . . . . . . 1 . 1 2 . 1 7 Hackware 13 | . . . . . . . 3 . . . . 1 . . . . 1 . 1 . . 2 1 . . 1 3 . . . . Protection 42 | . . . 3 3 3 3 3 2 1 . . 1 2 1 . 1 1 1 5 . . . 5 . 1 . 2 . 2 . 2 Artifact . | . . . . . . . . . . . . . . . . . . . . . . . . . . . . . . . . Weapon 187 | 2 3 2 13 8 18 5 16 7 . 2 2 5 5 3 2 2 1 1 9 . 7 1 17 2 1 11 3 7 3 10 19 Energy Gun 18 | 1 2 1 4 . 5 . 1 . . . . . . . . . . . . . . . . 2 1 1 . . . . . Energy Cannon 43 | . . . 2 2 4 . 7 4 . 2 1 1 2 1 . . 1 1 2 . 1 . 2 . . 3 . 1 2 2 2 Ballistic Gun 67 | 1 1 1 3 3 5 4 4 . . . . 1 . . . . . . 4 . 3 1 4 . . 5 2 5 1 5 14 Ballistic Cannon 2 | . . . 2 . . . . . . . . . . . . . . . . . . . . . . . . . . . . Launcher 23 | . . . . 1 3 . 2 2 . . 1 1 1 1 . 1 . . 1 . 1 . 6 . . . . . . . 2 Special Weapon 2 | . . . . 1 . . . . . . . . . . . . . . 1 . . . . . . . . . . . . Impact Weapon 1 | . . . . . . . . . . . . . . . . . . . . . . . . . . . . 1 . . . Slashing Weapon 14 | . . . 2 1 1 1 2 1 . . . 2 2 1 1 . . . . . . . . . . . . . . . . Piercing Weapon 17 | . . . . . . . . . . . . . . . 1 1 . . 1 . 2 . 5 . . 2 1 . . 3 1 Special Melee Weapon . | . . . . . . . . . . . . . . . . . . . . . . . . . . . . . . . . Unidentified Prototypes 50 | . . . 5 1 3 . 3 . . . . 1 . . . . 1 . 4 . 1 . . 5 . 7 3 4 1 . 11 Parts Lost 61 | . 2 3 5 3 11 3 6 6 1 . . . . . . . . . 1 . 1 . 3 . 2 . 1 4 . . 9 Power 9 | . 1 . . . 1 1 . 1 . . . . . . . . . . . . . . 1 . 1 . . 2 . . 1 Propulsion 13 | . . 1 3 . 3 1 3 2 . . . . . . . . . . . . . . . . . . . . . . . Utility 21 | . . . 1 2 3 1 3 1 1 . . . . . . . . . . . 1 . 1 . 1 . 1 1 . . 4 Weapon 18 | . 1 2 1 1 4 . . 2 . . . . . . . . . . 1 . . . 1 . . . . 1 . . 4 Highest Loss Streak 4 | . 1 2 1 1 4 1 4 2 1 . . . . . . . . . 1 . 1 . 3 . 1 . 1 2 . . 2 Average Slot Usage (%) 98 | . 99 100 97 100 99 99 98 94 99 85 100 99 100 100 100 100 98 100 100 100 99 99 98 94 91 100 99 99 95 96 98 Engine 6 | . 14 14 11 11 9 9 7 7 7 7 7 8 6 6 6 6 . . . . . . . . . . . . . . . Core 3 | . . . . . . . . . . . . 3 6 6 6 6 10 11 11 11 11 10 8 6 9 9 6 6 4 3 2 Reactor 1 | . . . . . . . . . . . . . . . . . . . . . . . 1 5 4 4 5 4 4 3 6 Treads 1 | . . . 6 . . . 2 1 7 7 7 1 . . . . . . . . . . . . . . . . . . . Leg 12 | . 28 28 12 22 26 27 18 15 15 15 15 14 . . . . . . . . . . . . . . . . . . . Hover 7 | . . . . . . . . . . . . 3 20 20 20 20 21 23 23 23 23 21 20 20 18 18 16 16 16 15 15 Device 7 | . . . . . 9 9 7 7 6 7 7 12 11 12 13 12 10 10 5 5 5 5 6 15 16 12 15 15 16 18 17 Storage 22 | . 27 28 33 33 26 26 23 23 23 23 23 20 20 20 20 20 17 17 17 17 17 14 15 15 13 13 12 12 12 7 18 Processor 3 | . . . . . . . 1 . . . . . . . . . 2 5 5 5 5 5 5 5 6 9 12 15 16 19 18 Hackware 9 | . . . . . . . 14 15 15 15 15 13 20 20 20 20 19 17 17 17 17 26 24 20 17 18 16 12 12 10 1 Protection 5 | . . . 11 11 8 9 5 7 7 7 7 5 . . . . . . 4 5 5 5 5 . . 4 3 4 4 3 2 Energy Gun 1 | . 14 14 1 . 4 . . . . . . . . . . . . . . . . . . . . . . . . . . Energy Cannon 3 | . . . 6 5 2 . 6 14 15 1 15 8 . . . . 3 5 1 . . . . . . 1 2 3 3 1 . Ballistic Gun 7 | . 13 14 8 16 10 17 7 . . . . . 6 6 6 6 1 . 6 11 6 5 6 . . 2 3 3 4 9 10 Naked Turns . | . . . . . . . . . . . . . . . . . . . . . . . . . . . . . . . . Heaviest Build 135 | 9 40 40 68 69 74 73 84 88 86 86 86 105 86 74 74 84 80 77 83 83 83 76 101 87 98 102 116 120 120 124 135 Greatest Support 128 | 20 20 20 40 28 54 54 53 53 36 36 36 75 75 75 75 75 100 100 100 100 100 128 128 128 128 128 128 128 128 128 128 Greatest Overweight (x) 22 | 1 1 1 22 2 2 1 4 2 2 2 2 3 1 . . 1 . . . . . . 1 . . . . . . . 1 Average Overweight (x) . | . . 1 2 2 1 . 1 1 2 1 2 1 . . . . . . . . . . . . . . . . . . . Largest Inventory Capacity 22 | 6 16 16 22 22 22 22 22 22 22 22 22 22 22 22 22 22 22 22 22 22 22 22 22 22 22 22 22 22 22 22 16 Average Capacity 20 | 5 12 16 22 22 21 21 22 22 22 22 22 22 22 22 22 22 22 22 22 22 22 21 22 22 22 22 22 22 22 16 16 Most Carried 22 | 2 16 16 22 22 22 22 22 22 22 22 22 22 22 22 22 22 22 22 22 22 22 22 22 22 22 22 22 22 22 21 16 Average Carried 19 | 1 10 14 19 21 21 21 21 20 20 22 22 21 22 21 22 22 21 21 21 22 21 20 21 21 21 21 21 20 21 15 15 Final Capacity 22 | 6 16 16 22 22 22 22 22 22 22 22 22 22 22 22 22 22 22 22 22 22 22 22 22 22 22 22 22 22 22 16 16 Final Carried 22 | 2 15 14 22 22 22 22 22 20 22 22 22 22 22 22 22 22 22 22 22 22 21 22 21 22 22 22 22 22 22 16 16 Class Distribution -------------------- 44% | Hauler-Mutant 17% | Hacker-Mutant 14% | Mutant 11% | Wizard-Mutant 4% | Commander-Mutant 3% | Generator-Gunner Dominant Class ---------------- Mutant | -10/Materials Mutant | -10/Mines Hauler-Mutant | -9/Materials Hauler-Mutant | -9/Mines Hauler-Mutant | -8/Materials Hauler-Mutant | -8/Storage Hauler-Mutant | -7/Factory Hauler-Mutant | -7/Lower Caves Hauler-Mutant | -7/Lower Caves Hauler-Mutant | -7/Data Miner Hauler-Mutant | -6/Proximity Caves Hauler-Mutant | -6/Factory Hacker-Mutant | -6/Lower Caves Hacker-Mutant | -6/Lower Caves Hacker-Mutant | -6/Zion Hacker-Mutant | -5/Proximity Caves Hacker-Mutant | -5/Factory Commander-Mutant | -5/Extension Commander-Mutant | -5/Cetus Hacker-Mutant | -5/Archives Hacker-Mutant | -5/Hub_04(d) Wizard-Mutant | -4/Factory Wizard-Mutant | -4/Armory Hacker-Mutant | -4/Lab Hacker-Mutant | -3/Research Wizard-Mutant | -3/Testing Wizard-Mutant | -2/Research Hacker-Mutant | -2/Quarantine Hacker-Mutant | -2/Section 7 Hacker-Gunner | -1/Access Generator-Gunner | -1/Command Resources | -11 -10 -10 -9 -9 -8 -8 -7 -7 -7 -7 -6 -6 -6 -6 -6 -5 -5 -5 -5 -5 -5 -4 -4 -4 -3 -3 -2 -2 -2 -1 -1 ----------- Run | Scr Mat Min Mat Min Mat Sto Fac Low Low Dat Pro Fac Low Low Zio Pro Fac Ext Cet Arc Hub Fac Arm Lab Res Tes Res Qua Sec Acc Com Matter Collected 13589 | 267 152 30 640 479 826 752 975 239 101 . 66 160 200 74 20 96 60 80 185 . 76 153 620 . 276 360 491 782 240 697 4492 Remotely . | . . . . . . . . . . . . . . . . . . . . . . . . . . . . . . . . Salvage Created 20305 | 89 750 236 1356 834 1280 1228 2051 441 75 . 64 352 265 275 . 323 152 518 422 . 234 89 988 . 276 839 817 860 343 981 4167 Parts 1001 | 2 42 13 87 51 60 85 102 13 6 . 4 11 9 8 . 9 8 21 21 . 14 3 48 . 14 45 60 29 16 59 161 Haulers Intercepted 29 | . 2 . 6 . 3 6 3 . . . . . . . . . . 3 . . . . . . 1 3 . . . 2 . Recyclers Shooed 12 | . 1 . 6 1 1 . 2 . . . . . . . . . . . . . . 1 . . . . . . . . . Parts Field Recycled . | . . . . . . . . . . . . . . . . . . . . . . . . . . . . . . . . Retrieved Matter . | . . . . . . . . . . . . . . . . . . . . . . . . . . . . . . . . Parts Self-Destructed 25 | . . . . . . . . 6 4 . 14 . . . . 1 . . . . . . . . . . . . . . . Prevented 36 | . . . . . . . . 6 6 . 1 . 10 7 . 6 . . . . . . . . . . . . . . . Kills | -11 -10 -10 -9 -9 -8 -8 -7 -7 -7 -7 -6 -6 -6 -6 -6 -5 -5 -5 -5 -5 -5 -4 -4 -4 -3 -3 -2 -2 -2 -1 -1 ------- Run | Scr Mat Min Mat Min Mat Sto Fac Low Low Dat Pro Fac Low Low Zio Pro Fac Ext Cet Arc Hub Fac Arm Lab Res Tes Res Qua Sec Acc Com Combat Hostiles Destroyed 255 | . 10 4 23 16 23 22 24 7 1 . 1 6 4 4 . 5 1 3 4 . 2 1 14 . 1 6 11 7 6 7 42 Melee 18 | . . . 3 2 . . . 2 . . . . . . . . . . . . 1 . 5 . . 5 . . . . . Guns 153 | . 10 4 14 10 15 22 13 . . . . . . . . . . . . . 1 . 1 . . 1 9 6 3 4 40 Cannons 32 | . . . 5 4 1 . 4 3 1 . 1 2 . 1 . . . 2 1 . . . 1 . . . 2 . 3 1 . AOE 27 | . . . 1 . 6 . 4 . . . . 1 4 2 . 3 . . . . . . 6 . . . . . . . . Classes Destroyed 24 | 2 6 1 1 2 2 . 1 . . . . . . . . . 1 . . . . . 3 . . 1 . 1 1 . 2 Worker 22 | . 1 . 2 2 1 2 4 . . . . . . . . . 1 . . . 2 . . . 1 2 2 . . . 2 Builder 5 | . . . . . 1 . 1 . . . . . . . . . . 1 . . 1 . . . . 1 . . . . . Tunneler 7 | 1 1 1 . 1 . . 1 . . . . . . . . . 1 . . . . . . . . . 1 . . . . Hauler 29 | . 2 . 6 . 3 6 3 . . . . . . . . . . 3 . . . . . . 1 3 . . . 2 . Recycler 15 | 1 3 . 4 1 2 . 4 . . . . . . . . . . . . . . . . . . . . . . . . Operator 7 | . 1 . 2 . . . . . . . . . . . . . 1 . . . 1 . . . . . 1 1 . . . Drone 2 | . . . . . . . . . . . . . . . . . . . . . . . . . . . . . . . 2 Watcher 25 | . 1 . 1 . 2 1 5 . . . . . . . . . . 1 1 . . . 1 . 1 2 3 2 . 2 2 Swarmer 48 | . 3 . 10 . 4 7 1 . . . . 2 . . . 1 . 1 . . . . . . . . 5 . 5 . 9 Saboteur 1 | . . . . . . . . . . . . . . . . . . . . . . . 1 . . . . . . . . Grunt 83 | . 7 2 5 10 10 9 9 2 . . 1 3 3 4 . 3 . . 1 . . . 4 . . 3 . 4 . . 3 Brawler 6 | . . . . 2 . . 3 . . . . . . . . . . . . . . . . . . . . . . . 1 Duelist 7 | . . . 1 2 1 . 1 . . . . . 1 . . . . . . . . . . . . . . . . . 1 Researcher 1 | . . . . . . . . . . . . . . . . . . . . . . . . . . . . . 1 . . Sentry 41 | . . 2 7 . 7 6 2 2 1 . . 1 . . . 1 . 1 . . 2 . 1 . . . 3 1 1 2 1 Demolisher 2 | . . . . . . . . . . . . . . . . . . . . . . . 1 . . . . . . . 1 Specialist 2 | . . . . . . . . . . . . . . . . . . . . . . . 2 . . . . . . . . Hunter 12 | . . . . . 1 . 1 1 . . . . . . . . . . . . . . . . . . . 1 . . 8 Programmer 29 | . . . . . . . 7 2 . . . . . . . . . . . . . . 5 . . 2 3 . . 3 7 Behemoth 6 | . . . . . . . . . . . . . . . . . 1 1 . . . 1 . . 1 . . . . 2 . Cetus Guard 3 | . . . . . . . . . . . . . . . . . . . 3 . . . . . . . . . . . . M Guard 2 | . . . . . . . . . . . . . . . . . . . . . . . . . . . . . . . 2 Enhanced Q-Series 8 | . . . . . . . . . . . . . . . . . . . . . . . . . . . . . . . 8 Combat Programmer 2 | . . . . . . . . . . . . . . . . . . . . . . . . . . . . . . . 2 Alpha 7 1 | . . . . . . . . . . . . . . . . . . . . . . . . . . 1 . . . . . Fortress 1 | . . . . . . . . . . . . . . . . . . . . . . . . . . . . 1 . . . Decomposer 1 | . . . . . . . . 1 . . . . . . . . . . . . . . . . . . . . . . . Assembled 2 | . . . . 2 . . . . . . . . . . . . . . . . . . . . . . . . . . . Best Kill Streak 12 | 2 4 2 5 5 5 7 5 3 1 . 1 3 4 4 . 5 4 2 5 . 6 1 5 . 1 3 5 4 5 3 12 Combat Bots Only 10 | . 3 2 3 3 4 7 4 3 1 . 1 3 4 4 . 5 1 2 3 . 2 1 5 . 1 3 4 3 4 2 10 Max Kills in Single Turn 4 | 1 1 1 1 1 2 2 2 1 1 . 1 1 2 1 . 2 1 1 1 . 4 1 2 . 1 1 1 1 1 1 3 Gunslinging 1 | . . . . . . 1 . . . . . . . . . . . . . . . . . . . . . . . . 1 Exploded 2 | . . . 1 . 2 . 2 . . . . 1 2 1 . 2 . . . . . . 2 . . . . . . . . Melee 1 | . . . 1 1 . . . 1 . . . . . . . . . . . . 1 . 1 . . 1 . . . . . Uniques/NPCs Destroyed 3 | . . . . 1 . . . . . . . . . . . . . . 1 . . . . . . . . . . . 1 YI-UF0 (-9/Mines) A7 (-5/Cetus) MAIN.C Shell (-1/Command) Combat | -11 -10 -10 -9 -9 -8 -8 -7 -7 -7 -7 -6 -6 -6 -6 -6 -5 -5 -5 -5 -5 -5 -4 -4 -4 -3 -3 -2 -2 -2 -1 -1 -------- Run | Scr Mat Min Mat Min Mat Sto Fac Low Low Dat Pro Fac Low Low Zio Pro Fac Ext Cet Arc Hub Fac Arm Lab Res Tes Res Qua Sec Acc Com Damage Taken 18504 | . 410 281 1326 942 1829 1059 1435 1016 149 . 74 205 32 112 . 127 306 262 183 . 275 262 1843 . 152 246 605 880 459 252 3782 Core 2078 | . 73 50 206 132 175 50 116 178 15 . 5 17 . . . . 64 94 4 . 22 43 147 . . 38 42 66 44 20 477 Absorbed by Shields 4021 | . . . . . . . . . . . . . . . . . . 106 44 . . . . . . . . . . 260 3611 Core Remaining (%) 72 | 100 . 50 . 15 . 59 . . . . 55 . . . . 98 . . . . 81 . . 83 . 97 . . 89 . 68 Volleys Fired 1180 | 7 75 13 121 65 92 103 137 18 2 . 2 14 7 5 . 6 . 8 26 . 19 2 36 . 4 28 68 49 45 25 203 Largest 3 | 2 2 2 2 2 2 2 2 2 2 . 2 2 1 1 . 1 . 1 2 . 2 1 2 . 1 2 2 2 2 3 3 Hottest 190 | 60 80 70 100 136 150 50 126 138 138 . 138 138 69 69 . 43 . 69 138 . 90 35 157 . 40 90 95 95 190 150 150 Shots Fired 2203 | 14 144 26 227 126 177 206 226 35 5 . 6 23 7 5 . 6 . 8 30 . 27 2 61 . 4 38 77 59 64 67 533 Gun 1690 | 14 144 26 153 93 144 206 150 . . . . . . . . . . . . . 26 2 38 . 4 21 59 38 20 61 491 Cannon 424 | . . . 74 29 26 . 69 32 5 . 5 19 1 1 . . . 8 10 . 1 . 6 . . 17 18 21 44 6 32 Launcher 70 | . . . . . 7 . 7 3 . . 1 4 6 4 . 6 . . 5 . . . 17 . . . . . . . 10 Special 19 | . . . . 4 . . . . . . . . . . . . . . 15 . . . . . . . . . . . . Kinetic 1533 | 7 72 13 119 93 120 206 147 . . . . . . . . . . . . . 26 2 38 . . 21 59 38 20 61 491 Thermal 466 | 7 72 13 108 33 50 . 29 . . . . . . . . . . . 15 . 1 . . . . 17 18 21 44 6 32 Explosive 7 | . . . . . 7 . . . . . . . . . . . . . . . . . . . . . . . . . . Electromagnetic 197 | . . . . . . . 50 35 5 . 6 23 7 5 . 6 . 8 15 . . . 23 . 4 . . . . . 10 Robot Hit Streak 69 | 2 6 7 9 23 19 12 10 8 4 . 7 12 13 18 . 19 . 20 5 . 9 1 6 . 2 7 10 11 4 7 69 Robot Miss Streak 12 | 3 5 3 4 1 4 5 4 5 2 . . 3 . . . . . 1 3 . 2 1 4 . 3 2 10 3 10 3 12 Penetration Max 2 | . . . . . . . . . . . . . . . . . . . . . 1 . 2 . . 1 . 1 . . 2 Secondary Targets 16 | . 1 1 1 1 1 3 2 . . . . . . . . . . . . . . . . . . . . . . . 6 Max Gunslinging Chain 1 | . 1 1 1 1 1 1 1 . . . . . . . . . . . . . . . . . . . . . . . 1 Shots Hit Robots 1579 | 6 87 19 153 99 131 124 143 33 4 . 3 17 1 5 . 1 6 17 21 . 12 3 35 . 8 40 53 35 14 41 468 Core Hits 992 | 3 38 12 57 32 56 48 65 13 2 . 4 15 8 8 . 9 2 8 17 . 11 1 26 . 4 27 38 29 9 25 425 Critical Hits 247 | . . . 5 5 4 1 1 . . . . . . . . . 1 2 3 . 3 . 12 . 1 3 18 7 6 13 162 Critical Kills 52 | . . . . 1 . 1 1 . . . . . . . . . . 1 . . 1 . 3 . 1 2 6 5 4 6 20 Critical Parts Destroyed 159 | . . . 4 3 3 . . . . . . . . . . . 1 1 3 . 1 . 9 . . 1 9 2 2 6 114 Melee Attacks 208 | . . . 15 14 1 6 6 17 . . . 10 . . . 1 11 19 3 . 7 10 24 3 16 27 8 5 . 3 2 Kinetic 4 | . . . . . . . . . . . . . . . . . . . . . . . . . . . . 4 . . . Impact . | . . . . . . . . . . . . . . . . . . . . . . . . . . . . . . . . Slashing 69 | . . . 15 14 1 6 6 17 . . . 10 . . . . . . . . . . . . . . . . . . . Piercing 135 | . . . . . . . . . . . . . . . . 1 11 19 3 . 7 10 24 3 16 27 8 1 . 3 2 Sneak Attacks 24 | . . . 2 . . 1 . . . . . 1 . . . . 2 7 3 . . 1 . . 2 5 . . . . . Combat Hostiles . | . . . . . . . . . . . . . . . . . . . . . . . . . . . . . . . . Follow-up Attacks . | . . . . . . . . . . . . . . . . . . . . . . . . . . . . . . . . Damage Inflicted 44045 | 72 829 218 3318 1567 2892 2270 3500 1097 130 . 113 796 529 441 . 623 492 1372 1398 . 785 220 1371 . 573 2415 1392 1010 375 821 13426 Guns 25065 | 72 829 218 1408 1029 1848 2159 1920 . . . . . . . . . . . . . 351 26 260 . 2 398 1159 605 61 718 12002 Cannons 6511 | . . . 984 405 404 . 910 442 130 . 67 280 24 32 . . . 123 250 . . . 51 . . 383 233 261 314 103 1115 Explosions 6068 | . . . 503 . 640 . 670 130 . . 46 409 505 409 . 623 . . 665 . 378 . 781 . . . . . . . 309 Melee 6221 | . . . 423 89 . 111 . 525 . . . 107 . . . . 492 1249 347 . 56 194 279 . 571 1634 . 144 . . . Ramming . | . . . . . . . . . . . . . . . . . . . . . . . . . . . . . . . . Kinetic 24066 | 19 344 95 1334 1029 1484 2159 1878 . . . . . . . . . . . . . 351 26 260 . . 398 1159 749 61 718 12002 Thermal 6879 | 53 485 123 1561 449 768 . 564 . . . . . 178 . . 153 . . 136 . . . . . . 383 233 261 314 103 1115 Explosive 640 | . . . . . 640 . . . . . . . . . . . . . . . . . . . . . . . . . . Electromagnetic 6383 | . . . . . . . 1058 572 130 . 113 689 351 441 . 470 . 123 915 . 378 . 832 . 2 . . . . . 309 Impact . | . . . . . . . . . . . . . . . . . . . . . . . . . . . . . . . . Slashing 1255 | . . . 423 89 . 111 . 525 . . . 107 . . . . . . . . . . . . . . . . . . . Piercing 4822 | . . . . . . . . . . . . . . . . . 492 1249 347 . 56 194 279 . 571 1634 . . . . . Highest Corruption 19 | . . . . . . 3 17 19 19 19 19 . . . . . . . . . . . 15 15 . 3 1 6 6 1 10 Average Corruption 9 | . . . . . . 2 13 18 19 19 19 . . . . . . . . . . . 7 13 . 1 1 4 6 1 5 Corruption Purged 12 | . . . . . . . . . . . . . . . . . . . . . . . . 2 . . . . . . 10 Effects 403 | . . . . . . 16 103 79 30 6 17 . . . . . . . . . . . 20 12 . 9 3 21 18 2 67 Message Errors 82 | . . . . . . 4 23 15 7 1 6 . . . . . . . . . . . 1 3 . 5 . 2 4 . 11 Matter Fused 59 | . . . . . . 2 12 17 5 2 1 . . . . . . . . . . . 3 2 . . . 7 3 . 5 Heat Flow Errors 33 | . . . . . . 2 5 8 2 . 1 . . . . . . . . . . . 2 2 . . . 6 2 . 3 Energy Discharges 32 | . . . . . . 2 7 4 3 . 1 . . . . . . . . . . . 3 2 . 2 . 1 2 . 5 Parts Rejected 3 | . . . . . . . . 1 . . . . . . . . . . . . . . 1 . . . . . . . 1 Data Loss (minor) 37 | . . . . . . 3 10 6 4 3 1 . . . . . . . . . . . 1 . . 1 2 3 . . 3 Data Loss (major) 6 | . . . . . . . 2 1 . . 1 . . . . . . . . . . . . . . . . . 1 . 1 Misfires 17 | . . . . . . . 3 4 1 . 3 . . . . . . . . . . . 1 . . . . . 1 . 4 Alerts 9 | . . . . . . . 4 3 2 . . . . . . . . . . . . . . . . . . . . . . Misdirections 31 | . . . . . . . 13 6 6 . 1 . . . . . . . . . . . 1 3 . . . . . . 1 Targeting Errors 81 | . . . . . . 3 16 13 . . 2 . . . . . . . . . . . 7 . . 1 1 2 4 2 30 Weapon Failures 13 | . . . . . . . 8 1 . . . . . . . . . . . . . . . . . . . . 1 . 3 Overload Shots 6 | . . . . . . . . . . . . . . . . . . . . . . . . . . . . . 1 2 3 Effects 1 | . . . . . . . . . . . . . . . . . . . . . . . . . . . . . . . 1 Energy Bleed 1 | . . . . . . . . . . . . . . . . . . . . . . . . . . . . . . . 1 Overflow Damage 1524 | . . . 284 . 46 . 17 107 . . . 87 8 5 . . 282 300 7 . 6 164 26 . 54 99 . . 12 . 20 Projectiles 95 | . . . . . . . 2 . . . . . . . . . . . . . . . . . . 61 . . 12 . 20 Explosions 349 | . . . 225 . 46 . 15 25 . . . . 8 5 . . . . . . 6 . 19 . . . . . . . . Melee 1080 | . . . 59 . . . . 82 . . . 87 . . . . 282 300 7 . . 164 7 . 54 38 . . . . . Knockbacks 1 | . . . 1 . . . . . . . . . . . . . . . . . . . . . . . . . . . . Impact . | . . . . . . . . . . . . . . . . . . . . . . . . . . . . . . . . Kinetic 1 | . . . 1 . . . . . . . . . . . . . . . . . . . . . . . . . . . . Secondary . | . . . . . . . . . . . . . . . . . . . . . . . . . . . . . . . . Self-Inflicted Damage 329 | . . . . . 179 . . 17 . . . . . . . . . . 8 . 87 . 38 . . . . . . . . Shots 10 | . . . . . 5 . . 1 . . . . . . . . . . 1 . 1 . 2 . . . . . . . . Rammed . | . . . . . . . . . . . . . . . . . . . . . . . . . . . . . . . . Targets Rammed . | . . . . . . . . . . . . . . . . . . . . . . . . . . . . . . . . Kicked . | . . . . . . . . . . . . . . . . . . . . . . . . . . . . . . . . Crushed . | . . . . . . . . . . . . . . . . . . . . . . . . . . . . . . . . Highest Temperature 420 | 40 190 148 420 354 240 227 250 274 133 . 224 78 . 11 . . . . 86 . 137 11 269 242 . . . 247 101 33 178 Average Temperature 69 | 18 55 56 83 93 46 84 64 85 58 . 65 18 . 11 . . . . 30 . 43 5 71 122 . . . 98 44 33 81 Received Heat Transfer 3198 | . 195 114 291 298 630 396 159 270 . . 21 45 9 66 . 27 51 25 26 . 18 18 81 . 27 75 18 45 9 4 280 Effects 3 | . . . . . . . . . . . . . . . . . . . . . . . 3 . . . . . . . . Interference 3 | . . . . . . . . . . . . . . . . . . . . . . . 3 . . . . . . . . Siege Activations . | . . . . . . . . . . . . . . . . . . . . . . . . . . . . . . . . Robots Corrupted 18 | . . . . . . . 4 2 . . . 3 . 1 . 2 . . 3 . . . 1 . . . . . . . 2 Combat Hostiles 17 | . . . . . . . 3 2 . . . 3 . 1 . 2 . . 3 . . . 1 . . . . . . . 2 Parts Fried 54 | . . . . . . . 11 2 . . . 5 4 4 . 3 . . 10 . . . 7 . . . . . . . 8 Impact Corruptions . | . . . . . . . . . . . . . . . . . . . . . . . . . . . . . . . . Robots Melted 1 | . . . . . 1 . . . . . . . . . . . . . . . . . . . . . . . . . . Combat Hostiles 1 | . . . . . 1 . . . . . . . . . . . . . . . . . . . . . . . . . . Parts Melted 17 | . . . 1 . 6 . 1 . . . . . . . . . . . . . . . 3 . . . . 4 1 . 1 Heat Transferred 9214 | 125 1266 370 2631 888 1443 . 633 . . . . . 100 . . 150 . . 264 . . . . . . 333 185 222 296 74 234 Parts Sabotaged 2 | . . . . . . . . . . . . . . . . . . . . . . . 2 . . . . . . . . Parts Stolen . | . . . . . . . . . . . . . . . . . . . . . . . . . . . . . . . . Parts Stripped . | . . . . . . . . . . . . . . . . . . . . . . . . . . . . . . . . Power Chain Reactions 9 | . . . . . . . 4 . . . . . 2 1 . 1 . . . . . . 1 . . . . . . . . Missiles Intercepted . | . . . . . . . . . . . . . . . . . . . . . . . . . . . . . . . . Alert | -11 -10 -10 -9 -9 -8 -8 -7 -7 -7 -7 -6 -6 -6 -6 -6 -5 -5 -5 -5 -5 -5 -4 -4 -4 -3 -3 -2 -2 -2 -1 -1 ------- Run | Scr Mat Min Mat Min Mat Sto Fac Low Low Dat Pro Fac Low Low Zio Pro Fac Ext Cet Arc Hub Fac Arm Lab Res Tes Res Qua Sec Acc Com Peak Influence 844 | 10 283 86 339 205 334 529 724 . . . . 313 . . . . 159 461 720 128 731 553 334 . 108 541 400 270 363 424 844 Initial 357 | . . 11 1 132 8 57 197 . . . . 86 . . . . 63 17 257 128 44 357 182 . . 36 40 225 24 72 22 Average 169 | 2 109 33 146 77 137 290 381 . . . . 65 . . . . 98 178 407 128 105 309 184 . 45 222 111 92 177 224 485 Maximum Alert Level 3 | . 1 . 1 1 1 2 3 . . . . 1 . . . . . 2 3 . 3 2 1 . . 2 2 1 1 2 3 Low Security (%) 66 | 100 80 100 64 90 70 40 4 . . . . 91 . . . . 100 52 . 100 89 25 69 . 100 59 77 86 48 40 52 Level 1 21 | . 19 . 35 9 29 23 48 . . . . 8 . . . . . 41 62 . 7 60 30 . . . 17 13 51 53 4 Level 2 10 | . . . . . . 35 45 . . . . . . . . . . 5 24 . . 13 . . . 40 4 . . 5 22 Level 3 1 | . . . . . . . . . . . . . . . . . . . 13 . 2 . . . . . . . . . 19 Level 4 . | . . . . . . . . . . . . . . . . . . . . . . . . . . . . . . . . Level 5 . | . . . . . . . . . . . . . . . . . . . . . . . . . . . . . . . . High Security . | . . . . . . . . . . . . . . . . . . . . . . . . . . . . . . . . Max Security . | . . . . . . . . . . . . . . . . . . . . . . . . . . . . . . . . Squads Dispatched 57 | . 3 . 2 . 2 1 12 . . . . 2 . . . . 3 3 . . 2 1 4 . 3 6 3 3 2 3 2 Investigation 8 | . 2 . . . 1 . . . . . . . . . . . . 2 . . 1 . . . 1 1 . . . . . Extermination 20 | . . . . . . . 5 . . . . 1 . . . . 1 . . . . 1 2 . 1 2 2 2 1 1 1 Reinforcement 23 | . 1 . 2 . 1 1 2 . . . . 1 . . . . 2 1 . . 1 . 2 . 1 3 1 . 1 2 1 Assault 1 | . . . . . . . . . . . . . . . . . . . . . . . . . . . . 1 . . . Garrison 5 | . . . . . . . 5 . . . . . . . . . . . . . . . . . . . . . . . . Intercept . | . . . . . . . . . . . . . . . . . . . . . . . . . . . . . . . . Construction Impeded 3 | . . . . . . . . . . . . 1 . . . . . 1 . . . . . . . . . . . 1 . Haulers Reinforced 1 | . . . . . . . 1 . . . . . . . . . . . . . . . . . . . . . . . . Stealth | -11 -10 -10 -9 -9 -8 -8 -7 -7 -7 -7 -6 -6 -6 -6 -6 -5 -5 -5 -5 -5 -5 -4 -4 -4 -3 -3 -2 -2 -2 -1 -1 --------- Run | Scr Mat Min Mat Min Mat Sto Fac Low Low Dat Pro Fac Low Low Zio Pro Fac Ext Cet Arc Hub Fac Arm Lab Res Tes Res Qua Sec Acc Com Distress Signals 36 | . 3 . 3 1 1 2 1 . . . . . . . . . . . 1 . . . 4 . 1 1 1 . 2 1 14 Communications Jammed 142 | . . . . . . . . . . . . . . . . . . . . . . . . . . . 2 27 11 8 94 Distress Signals 141 | . . . . . . . . . . . . . . . . . . . . . . . . . . . 1 27 11 8 94 Times Spotted 526 | . 22 8 58 26 33 34 40 10 5 . 5 12 3 4 . 6 8 23 13 . 4 8 25 . 11 19 25 14 12 15 83 Peak Tracking Total 9 | . 4 3 6 4 4 4 6 5 4 . 4 4 4 4 . 5 5 9 5 . 2 6 6 . 5 6 6 4 5 3 8 Tactical Retreats 50 | . 2 1 11 7 1 1 5 3 . . . 1 . . . 1 . . 1 . . . 2 . 2 3 5 1 . 2 1 Traps | -11 -10 -10 -9 -9 -8 -8 -7 -7 -7 -7 -6 -6 -6 -6 -6 -5 -5 -5 -5 -5 -5 -4 -4 -4 -3 -3 -2 -2 -2 -1 -1 ------- Run | Scr Mat Min Mat Min Mat Sto Fac Low Low Dat Pro Fac Low Low Zio Pro Fac Ext Cet Arc Hub Fac Arm Lab Res Tes Res Qua Sec Acc Com Traps Triggered 30 | . . . . . 1 2 3 . . . . 2 . . . . 1 4 . . 1 1 6 . . 3 3 3 . . . Indirectly 3 | . . . . . . . . . . . . 1 . . . . . . . . 1 . 1 . . . . . . . . Trap Hack Attempts . | . . . . . . . . . . . . . . . . . . . . . . . . . . . . . . . . Triggered . | . . . . . . . . . . . . . . . . . . . . . . . . . . . . . . . . Disarmed 3 | . . . 3 . . . . . . . . . . . . . . . . . . . . . . . . . . . . Reprogrammed . | . . . . . . . . . . . . . . . . . . . . . . . . . . . . . . . . Reused . | . . . . . . . . . . . . . . . . . . . . . . . . . . . . . . . . Traps Extracted . | . . . . . . . . . . . . . . . . . . . . . . . . . . . . . . . . Installed . | . . . . . . . . . . . . . . . . . . . . . . . . . . . . . . . . Triggered 4 | . . . . . . . 3 . . . . . 1 . . . . . . . . . . . . . . . . . . Machines | -11 -10 -10 -9 -9 -8 -8 -7 -7 -7 -7 -6 -6 -6 -6 -6 -5 -5 -5 -5 -5 -5 -4 -4 -4 -3 -3 -2 -2 -2 -1 -1 ---------- Run | Scr Mat Min Mat Min Mat Sto Fac Low Low Dat Pro Fac Low Low Zio Pro Fac Ext Cet Arc Hub Fac Arm Lab Res Tes Res Qua Sec Acc Com Machines Disabled 59 | . . . 3 . 2 2 2 . . . . 1 . . . . . 5 1 . 23 . 2 1 . 5 . 6 4 . 2 Max in Single Turn 16 | . . . 2 . 1 1 1 . . . . 1 . . . . . 1 . . 16 . 1 1 . 1 . 1 1 . 1 Garrison Access 3 | . . . . . . . . . . . . 1 . . . . . . . . . . . . 1 . . 1 . . . Network Hub 1 | . . . . . . . . . . . . . . . . . . . . . 1 . . . . . . . . . . Machines Sabotaged . | . . . . . . . . . . . . . . . . . . . . . . . . . . . . . . . . Garrisons Compromised . | . . . . . . . . . . . . . . . . . . . . . . . . . . . . . . . . Overloaded Fab Kills . | . . . . . . . . . . . . . . . . . . . . . . . . . . . . . . . . Fab Network Shutdowns 4 | . . . . . . . 1 . . . . . . . . . . . . . . 1 . . . 1 1 . . . . Hacking | -11 -10 -10 -9 -9 -8 -8 -7 -7 -7 -7 -6 -6 -6 -6 -6 -5 -5 -5 -5 -5 -5 -4 -4 -4 -3 -3 -2 -2 -2 -1 -1 --------- Run | Scr Mat Min Mat Min Mat Sto Fac Low Low Dat Pro Fac Low Low Zio Pro Fac Ext Cet Arc Hub Fac Arm Lab Res Tes Res Qua Sec Acc Com Machines Accessed 140 | . 5 . 7 . 4 10 9 2 1 4 . 5 . . 1 . 6 15 2 . 3 6 7 . 6 10 9 12 6 5 5 Terminals 107 | . 3 . 6 . 3 8 7 . . . . 3 . . . . 5 15 2 . 3 4 5 . 4 8 6 10 6 4 5 Fabricators 12 | . . . . . . . 2 . . . . 1 . . . . 1 . . . . 1 2 . . 2 3 . . . . Repair Stations 6 | . . . 1 . 1 2 . . . . . . . . . . . . . . . 1 . . 1 . . . . . . Recycling Units 2 | . 2 . . . . . . . . . . . . . . . . . . . . . . . . . . . . . . Scanalyzers 2 | . . . . . . . . . . . . . . . . . . . . . . . . . . . . 1 . 1 . Garrison Access 3 | . . . . . . . . . . . . 1 . . . . . . . . . . . . 1 . . 1 . . . Total Hacks 652 | . 10 . 20 . 11 39 34 7 1 26 . 32 . . 7 . 25 55 15 . 17 26 47 . 22 50 68 64 24 30 22 Successful 425 | . 8 . 6 . 7 25 23 7 1 26 . 22 . . 7 . 16 31 8 . 13 19 34 . 15 37 47 38 13 16 6 Failed 224 | . 2 . 14 . 4 14 10 . . . . 10 . . . . 8 23 7 . 4 7 13 . 7 13 21 26 11 14 16 Catastrophic 24 | . . . . . . 1 2 . . . . . . . . . 1 1 . . . . . . 1 3 2 5 1 2 5 Database Lockouts 3 | . . . . . . . 1 . . . . . . . . . 1 1 . . . . . . . . . . . . . Manual 467 | . 10 . 17 . 9 27 22 . . . . 20 . . . . 18 52 13 . 14 18 35 . 16 40 51 52 11 23 19 Terminals 513 | . 8 . 18 . 9 35 28 . . . . 24 . . . . 18 55 15 . 17 18 33 . 19 39 47 59 24 25 22 Fabricators 72 | . . . . . . . 6 . . . . 7 . . . . 7 . . . . 6 14 . . 11 21 . . . . Repair Stations 12 | . . . 2 . 2 4 . . . . . . . . . . . . . . . 2 . . 2 . . . . . . Recycling Units 2 | . 2 . . . . . . . . . . . . . . . . . . . . . . . . . . . . . . Scanalyzers 9 | . . . . . . . . . . . . . . . . . . . . . . . . . . . . 4 . 5 . Garrison Access 3 | . . . . . . . . . . . . 1 . . . . . . . . . . . . 1 . . 1 . . . Terminal Hacks 238 | . 3 . 2 . 3 14 12 7 1 26 . 11 . . 7 . 5 20 7 . 10 8 13 . 9 20 19 22 7 10 2 Record 17 | . . . . . . . . 6 . 11 . . . . . . . . . . . . . . . . . . . . . Part Schematic 30 | . . . . . . 1 1 . . 5 . 2 . . 7 . 2 2 . . . 1 1 . 4 1 2 1 . . . Robot Schematic 7 | . . . . . . . . . . 7 . . . . . . . . . . . . . . . . . . . . . Robot Analysis 2 | . . . . . . . . . . . . . . . . . . . . . . . . . . . . 1 . . 1 Prototype ID Bank 11 | . . . . . . 4 1 . . 3 . . . . . . . 1 . . . . . . . . 2 . . . . Open Door 5 | . . . . . . 2 . 1 1 . . . . . . . . . 1 . . . . . . . . . . . . Level Access Points 4 | . . . . . . . . . . . . . . . . . . . . . 1 . . . . 1 . 1 1 . . Branch Access Points 6 | . . . . . . . 1 . . . . 1 . . . . 1 . . . . . . . 1 . 1 . . 1 . Emergency Access Points 1 | . . . . . . . . . . . . . . . . . . . . . . . . . . 1 . . . . . Machine Index 1 | . . . . . . . . . . . . . . . . . . . . . . . . . . . . . 1 . . Terminal Index 13 | . . . . . . 1 1 . . . . 1 . . . . . 1 . . 1 1 1 . 1 1 1 1 . 1 1 Fabricator Index 11 | . . . . . . . 1 . . . . 1 . . . . 1 . . . . 1 1 . 1 1 2 1 . 1 . Repair Station Index 1 | . . . . . . . . . . . . . . . . . . . . . . . . . . . . 1 . . . Scanalyzer Index 1 | . . . . . . . . . . . . . . . . . . . . . . . . . . . . 1 . . . Garrison Index 2 | . . . . . . . . . . . . . . . . . . . . . . . . . . . . 1 1 . . Alert Level 36 | . 1 . . . 1 2 2 . . . . 2 . . . . . 7 2 . 2 1 3 . . 3 3 4 1 2 . Unreport Threat 34 | . . . . . 1 2 2 . . . . 2 . . . . . 6 3 . . 2 3 . 1 4 2 2 1 3 . Locate Traps 1 | . . . . . . . 1 . . . . . . . . . . . . . . . . . . . . . . . . Disarm Traps 1 | . . . 1 . . . . . . . . . . . . . . . . . . . . . . . . . . . . Recall Investigation 1 | . . . . . . . . . . . . . . . . . . . . . 1 . . . . . . . . . . Recall Extermination 11 | . . . . . . . . . . . . . . . . . 1 . . . . 1 . . 1 2 2 2 1 1 . Recall Reinforcements 5 | . 1 . . . . . . . . . . . . . . . . . . . 1 . . . . 3 . . . . . Recall Assault 1 | . . . . . . . . . . . . . . . . . . . . . . . . . . . . 1 . . . Hauler Manifests 2 | . . . . . . . 1 . . . . . . . . . . . . . 1 . . . . . . . . . . Zone Layout 34 | . 1 . 1 . 1 2 1 . . . . 2 . . . . . 3 1 . 3 1 4 . . 3 4 5 1 1 . Fabricator Hacks 40 | . . . . . . . 5 . . . . 5 . . . . 4 . . . . 3 9 . . 5 9 . . . . Load Schematic 18 | . . . . . . . 2 . . . . 2 . . . . 2 . . . . 1 4 . . 3 4 . . . . Build 22 | . . . . . . . 3 . . . . 3 . . . . 2 . . . . 2 5 . . 2 5 . . . . Repair Station Hacks 10 | . . . . . 2 4 . . . . . . . . . . . . . . . 2 . . 2 . . . . . . Scan Component 5 | . . . . . 1 2 . . . . . . . . . . . . . . . 1 . . 1 . . . . . . Repair 5 | . . . . . 1 2 . . . . . . . . . . . . . . . 1 . . 1 . . . . . . Recycling Unit Hacks . | . . . . . . . . . . . . . . . . . . . . . . . . . . . . . . . . Scanalyzer 5 | . . . . . . . . . . . . . . . . . . . . . . . . . . . . 3 . 2 . Insert Component 5 | . . . . . . . . . . . . . . . . . . . . . . . . . . . . 3 . 2 . Garrison Access Hacks 2 | . . . . . . . . . . . . 1 . . . . . . . . . . . . 1 . . . . . . Seal Access 2 | . . . . . . . . . . . . 1 . . . . . . . . . . . . 1 . . . . . . Unauthorized Hacks 130 | . 5 . 4 . 2 7 6 . . . . 5 . . . . 7 11 1 . 3 6 12 . 3 12 19 13 6 4 4 Terminals 105 | . 3 . 4 . 2 7 6 . . . . 5 . . . . 4 11 1 . 3 3 7 . 3 9 11 12 6 4 4 Track 9 | . . . . . . . . . . . . . . . . . . 1 . . . . 2 . . 2 2 1 1 . . Assimilate 9 | . . . . . . . 1 . . . . 1 . . . . . . . . 1 . . . 1 1 1 1 1 1 . Botnet 79 | . 3 . 4 . 2 7 5 . . . . 3 . . . . 3 9 1 . 2 3 5 . 2 4 5 10 4 3 4 Detonate 2 | . . . . . . . . . . . . . . . . . . . . . . . . . . 1 1 . . . . Disrupt 2 | . . . . . . . . . . . . . . . . . 1 1 . . . . . . . . . . . . . Operators 4 | . . . . . . . . . . . . 1 . . . . . . . . . . . . . 1 2 . . . . Fabricators 22 | . . . . . . . . . . . . . . . . . 3 . . . . 3 5 . . 3 8 . . . . Report 6 | . . . . . . . . . . . . . . . . . 1 . . . . 1 1 . . 1 2 . . . . Prioritize 8 | . . . . . . . . . . . . . . . . . 1 . . . . 1 2 . . 1 3 . . . . Siphon 8 | . . . . . . . . . . . . . . . . . 1 . . . . 1 2 . . 1 3 . . . . Repair Stations . | . . . . . . . . . . . . . . . . . . . . . . . . . . . . . . . . Recycling Units 2 | . 2 . . . . . . . . . . . . . . . . . . . . . . . . . . . . . . Tunnel 2 | . 2 . . . . . . . . . . . . . . . . . . . . . . . . . . . . . . Scanalyzers . | . . . . . . . . . . . . . . . . . . . . . . . . . . . . . . . . Garrison Access 1 | . . . . . . . . . . . . . . . . . . . . . . . . . . . . 1 . . . Reprogram 1 | . . . . . . . . . . . . . . . . . . . . . . . . . . . . 1 . . . Data Cores Recovered 1 | . . . . . . . . . . . . 1 . . . . . . . . . . . . . . . . . . . Used 1 | . . . . . . . . . . . . 1 . . . . . . . . . . . . . . . . . . . Hacking Detections 100 | . 2 . 7 . 4 10 8 . . . . 2 . . . . 4 11 2 . 2 4 5 . 4 8 4 8 6 5 4 Full Trace Events 3 | . . . . . . . . . . . . . . . . . . 1 . . . . . . 1 1 . . . . . Feedback Events . | . . . . . . . . . . . . . . . . . . . . . . . . . . . . . . . . Feedback Blocked . | . . . . . . . . . . . . . . . . . . . . . . . . . . . . . . . . Robot Schematics Acquired 7 | . . . . . . . . . . 7 . . . . . . . . . . . . . . . . . . . . . Robots Built . | . . . . . . . . . . . . . . . . . . . . . . . . . . . . . . . . Matter . | . . . . . . . . . . . . . . . . . . . . . . . . . . . . . . . . Time . | . . . . . . . . . . . . . . . . . . . . . . . . . . . . . . . . Total Robot Build Rating . | . . . . . . . . . . . . . . . . . . . . . . . . . . . . . . . . Part Schematics Acquired 30 | . . . . . . 1 1 . . 5 . 2 . . 7 . 2 2 . . . 1 1 . 4 1 2 1 . . . Parts Built 26 | . . . . . . . 2 . . . . 5 . . . . 2 . . . . 4 6 . . 3 4 . . . . Matter 4778 | . . . . . . . 504 . . . . 614 . . . . 427 . . . . 486 1038 . . 576 1133 . . . . Time 1532 | . . . . . . . 126 . . . . 153 . . . . 199 . . . . 208 439 . . 134 273 . . . . Total Part Build Rating 171 | . . . . . . . 8 . . . . 29 . . . . 10 . . . . 36 38 . . 24 26 . . . . Parts Repaired 5 | . . . . . 1 2 . . . . . . . . . . . . . . . 1 . . 1 . . . . . . Time 171 | . . . . . 26 52 . . . . . . . . . . . . . . . 13 . . 80 . . . . . . Parts Recycled . | . . . . . . . . . . . . . . . . . . . . . . . . . . . . . . . . Recycled Matter . | . . . . . . . . . . . . . . . . . . . . . . . . . . . . . . . . Retrieved Matter . | . . . . . . . . . . . . . . . . . . . . . . . . . . . . . . . . Retrieved Components . | . . . . . . . . . . . . . . . . . . . . . . . . . . . . . . . . Parts Scanalyzed . | . . . . . . . . . . . . . . . . . . . . . . . . . . . . . . . . Part Schematics Acquired . | . . . . . . . . . . . . . . . . . . . . . . . . . . . . . . . . Parts Damaged . | . . . . . . . . . . . . . . . . . . . . . . . . . . . . . . . . Bothacking | -11 -10 -10 -9 -9 -8 -8 -7 -7 -7 -7 -6 -6 -6 -6 -6 -5 -5 -5 -5 -5 -5 -4 -4 -4 -3 -3 -2 -2 -2 -1 -1 ------------ Run | Scr Mat Min Mat Min Mat Sto Fac Low Low Dat Pro Fac Low Low Zio Pro Fac Ext Cet Arc Hub Fac Arm Lab Res Tes Res Qua Sec Acc Com Used RIF Installer . | . . . . . . . . . . . . . . . . . . . . . . . . . . . . . . . . Robots Hacked . | . . . . . . . . . . . . . . . . . . . . . . . . . . . . . . . . Non-combat . | . . . . . . . . . . . . . . . . . . . . . . . . . . . . . . . . Combat . | . . . . . . . . . . . . . . . . . . . . . . . . . . . . . . . . Robot Hacks Applied . | . . . . . . . . . . . . . . . . . . . . . . . . . . . . . . . . Relay Couplers Released 5 | . . . . . . . 4 . . . . . . . . . . . . . . . . . . . . 1 . . . Machine Destruction 1 | . . . . . . . . . . . . . . . . . . . . . . . . . . . . 1 . . . Programmers 4 | . . . . . . . 4 . . . . . . . . . . . . . . . . . . . . . . . . Robots Rewired 24 | . . . . . . . . . . . . . . . . . . 14 . . . . 8 . . 2 . . . . . Allies Hacked 1 | . . . . . . . . . . . . . . . . . . . . . . . 1 . . . . . . . . Hacks Repelled . | . . . . . . . . . . . . . . . . . . . . . . . . . . . . . . . . Allies | -11 -10 -10 -9 -9 -8 -8 -7 -7 -7 -7 -6 -6 -6 -6 -6 -5 -5 -5 -5 -5 -5 -4 -4 -4 -3 -3 -2 -2 -2 -1 -1 -------- Run | Scr Mat Min Mat Min Mat Sto Fac Low Low Dat Pro Fac Low Low Zio Pro Fac Ext Cet Arc Hub Fac Arm Lab Res Tes Res Qua Sec Acc Com Total Allies 56 | . . 3 . . . 10 1 . . . 1 . . . . . . 27 . . 1 . 8 . 1 2 . 1 1 . . Largest Group 19 | . . 3 2 . . 10 5 . . . 1 1 . . . . . 19 17 10 10 . 8 . 1 3 . 1 1 . . Highest-Rated Group 661 | . . 40 24 . . 173 103 . . . 94 94 . . . . . 661 622 311 311 . 326 . 44 202 . 10 10 . . Highest-Rated Ally 156 | . . 16 16 . . 29 29 . . . 94 94 . . . . . 156 134 37 37 . 48 . 44 79 . 10 10 . . Total Orders 2 | . . . . . . . . . . . . . . . . . . . 2 . . . . . . . . . . . . STAY 1 | . . . . . . . . . . . . . . . . . . . 1 . . . . . . . . . . . . FOLLOW 1 | . . . . . . . . . . . . . . . . . . . 1 . . . . . . . . . . . . Ally Attacks 534 | . . 20 11 . . 74 34 . . . 6 20 . . . . . 197 75 . 57 . 24 . . 16 . . . . . Total Damage 10386 | . . 196 118 . . 998 374 . . . 284 631 . . . . . 3994 1251 . 1105 . 570 . . 865 . . . . . Kills 96 | . . 6 3 . . 11 4 . . . 4 4 . . . . . 39 15 . 6 . 4 . . . . . . . . Allies Corrupted 2 | . . . . . . . 1 . . . . . . . . . . . . . . . . . . 1 . . . . . Allies Melted . | . . . . . . . . . . . . . . . . . . . . . . . . . . . . . . . . Intel | -11 -10 -10 -9 -9 -8 -8 -7 -7 -7 -7 -6 -6 -6 -6 -6 -5 -5 -5 -5 -5 -5 -4 -4 -4 -3 -3 -2 -2 -2 -1 -1 ------- Run | Scr Mat Min Mat Min Mat Sto Fac Low Low Dat Pro Fac Low Low Zio Pro Fac Ext Cet Arc Hub Fac Arm Lab Res Tes Res Qua Sec Acc Com Robot Analysis Total 2 | . . . . . . . . . . . . . . . . . . . . . . . . . . . . 1 . . 1 Derelict Logs Recovered 10 | . . 1 . 2 . . . 1 1 . . . 1 . 2 2 . . . . . . . . . . . . . . . Drone Launches . | . . . . . . . . . . . . . . . . . . . . . . . . . . . . . . . . Drone Recoveries . | . . . . . . . . . . . . . . . . . . . . . . . . . . . . . . . . Exploration | -11 -10 -10 -9 -9 -8 -8 -7 -7 -7 -7 -6 -6 -6 -6 -6 -5 -5 -5 -5 -5 -5 -4 -4 -4 -3 -3 -2 -2 -2 -1 -1 ------------- Run | Scr Mat Min Mat Min Mat Sto Fac Low Low Dat Pro Fac Low Low Zio Pro Fac Ext Cet Arc Hub Fac Arm Lab Res Tes Res Qua Sec Acc Com Turns Passed 27809 | 1361 1237 1449 2277 2123 1669 1404 2235 1222 597 149 333 1131 307 331 626 260 426 857 416 54 359 528 805 248 477 938 1048 957 410 299 1276 Spaces Moved 18785 | 78 656 885 891 997 797 631 901 593 319 96 172 568 296 395 854 313 399 693 186 36 205 510 687 258 617 1349 1100 1429 460 376 1038 Core 27 | 21 . . 6 . . . . . . . . . . . . . . . . . . . . . . . . . . . . Treads 472 | . . . 299 . . . 173 . . . . . . . . . . . . . . . . . . . . . . . . Legs 6964 | 57 656 885 586 997 797 631 728 593 319 96 172 447 . . . . . . . . . . . . . . . . . . . Wheels . | . . . . . . . . . . . . . . . . . . . . . . . . . . . . . . . . Hover 11322 | . . . . . . . . . . . . 121 296 395 854 313 399 693 186 36 205 510 687 258 617 1349 1100 1429 460 376 1038 Flight . | . . . . . . . . . . . . . . . . . . . . . . . . . . . . . . . . Fastest Speed 48 | 50 120 150 180 180 120 120 150 150 180 150 180 72 72 72 72 72 68 68 68 68 68 48 48 48 48 48 48 48 48 48 48 Average Speed 99 | 102 143 150 198 180 154 149 169 177 180 152 180 145 78 72 72 74 69 68 68 68 68 63 48 48 48 48 48 48 48 48 49 Slowest Speed 1150 | 120 150 150 1150 180 180 150 240 180 180 180 180 310 142 72 72 142 72 68 68 68 68 68 156 48 48 48 48 48 48 48 148 Overloaded Moves . | . . . . . . . . . . . . . . . . . . . . . . . . . . . . . . . . Propulsion Burnouts . | . . . . . . . . . . . . . . . . . . . . . . . . . . . . . . . . Robots Hopped . | . . . . . . . . . . . . . . . . . . . . . . . . . . . . . . . . Cave-ins Triggered . | . . . . . . . . . . . . . . . . . . . . . . . . . . . . . . . . Exploration Rate (%) 52 | 8 93 99 86 93 52 82 27 65 50 70 41 17 35 53 82 42 13 82 60 56 20 13 48 98 21 89 21 87 23 11 29 Regions Visited 31 Branch Regions 21 Pre-discovered Areas 8 | . 2 1 . 1 . . . . . 1 . . . . 3 . . . . . . . . . . . . . . . . Known Exits Taken 17 | . . . . . . . 1 . . . . 1 . . . 1 1 1 1 1 1 1 1 1 1 1 1 1 1 1 . Unknown Exits Taken 14 | 1 1 1 1 1 1 1 . 1 1 1 1 . 1 1 1 . . . . . . . . . . . . . . . . Scrap Searched 12 | . . 2 . 1 . . . 1 2 . . . . 1 2 3 . . . . . . . . . . . . . . . Spaces Dug 117 | . . . 8 . 7 . 9 . . . . 8 . . . 1 4 3 . . 9 7 6 . 8 6 14 1 19 5 2 Terrain Destroyed 436 | . . . 28 . 55 . 29 . . . . 8 24 8 . 12 4 3 . . 163 9 7 . 8 9 20 8 31 5 5 Melee 73 | . . . 8 . 1 . 6 . . . . 8 . . . 1 4 3 . . 6 7 6 . 8 5 7 . . 1 2 Projectile 82 | . . . . . 4 . 6 . . . . . . . . . . . . . 7 2 . . . 4 13 8 31 4 3 AOE 281 | . . . 20 . 50 . 17 . . . . . 24 8 . 11 . . . . 150 . 1 . . . . . . . . Terrain Rammed . | . . . . . . . . . . . . . . . . . . . . . . . . . . . . . . . . Walls Destroyed . | . . . . . . . . . . . . . . . . . . . . . . . . . . . . . . . . Machines Disabled . | . . . . . . . . . . . . . . . . . . . . . . . . . . . . . . . . Actions | -11 -10 -10 -9 -9 -8 -8 -7 -7 -7 -7 -6 -6 -6 -6 -6 -5 -5 -5 -5 -5 -5 -4 -4 -4 -3 -3 -2 -2 -2 -1 -1 --------- Run | Scr Mat Min Mat Min Mat Sto Fac Low Low Dat Pro Fac Low Low Zio Pro Fac Ext Cet Arc Hub Fac Arm Lab Res Tes Res Qua Sec Acc Com Total 25782 | 1343 819 984 1171 1171 1096 958 1407 695 335 99 192 828 356 435 865 329 532 1041 423 65 387 695 1057 377 770 1560 1562 1655 608 454 1513 Wait 4530 | 1251 62 80 75 64 93 171 282 48 8 . 17 195 45 27 1 4 105 232 171 30 141 156 226 93 120 111 354 132 86 20 130 Move 18754 | 77 655 884 890 996 796 630 900 592 318 95 171 567 295 394 853 312 398 692 185 35 204 509 686 257 616 1348 1099 1428 459 375 1038 Hop . | . . . . . . . . . . . . . . . . . . . . . . . . . . . . . . . . Pick Up 251 | 2 14 3 27 5 44 24 19 3 3 . . 5 . 2 3 . 5 1 9 . 2 6 10 4 6 6 5 8 3 6 26 Fast Attach 139 | 6 1 . 6 4 6 3 12 3 . 2 . 11 . . 2 1 3 1 4 . 2 2 15 8 1 8 9 2 3 . 24 Attach 93 | . 2 3 5 4 13 3 8 5 1 . . 2 . . . . 1 . 1 . 1 2 3 1 4 1 4 7 1 6 15 Detach 10 | . . . . . . . . . . . . 1 . . . . . . . . . . . 1 . . . 2 1 . 5 Swap 249 | . 6 . 13 10 16 7 22 7 3 . 2 9 9 5 1 4 3 6 12 . 6 4 23 1 1 10 7 12 7 12 31 Drop 263 | . 4 1 19 9 35 11 21 1 . 2 . 14 . 2 5 1 6 4 12 . 5 4 17 9 2 15 8 7 3 7 39 Fire 1180 | 7 75 13 121 65 92 103 137 18 2 . 2 14 7 5 . 6 . 8 26 . 19 2 36 . 4 28 68 49 45 25 203 Melee 208 | . . . 15 14 1 6 6 17 . . . 10 . . . 1 11 19 3 . 7 10 24 3 16 27 8 5 . 3 2 Ram 1 | . . . . . . . . 1 . . . . . . . . . . . . . . . . . . . . . . . Kick . | . . . . . . . . . . . . . . . . . . . . . . . . . . . . . . . . Crush . | . . . . . . . . . . . . . . . . . . . . . . . . . . . . . . . . Escape Stasis 10 | . . . . . . . . . . . . . . . . . . 7 . . . . . . . . . 3 . . . Rewire 94 | . . . . . . . . . . . . . . . . . . 71 . . . . 17 . . 6 . . . . . Trap . | . . . . . . . . . . . . . . . . . . . . . . . . . . . . . . . . Miscellaneous . | . . . . . . . . . . . . . . . . . . . . . . . . . . . . . . . . Route ------- -11/Scrapyard -10/Materials (discovered 4 exits: *Mat x3 / [*Min]) -10/Mines (discovered 2 exits: *Mat x2) -9/Materials (discovered 4 exits: *Mat x3 / [*Min]) -9/Mines (discovered 2 exits: *Mat x2) -8/Materials (discovered 2 exits: *Fac / *Sto) -8/Storage (discovered 2 exits: *Fac / Rec) -7/Factory (discovered 3 exits: *Fac / *Low x2) -7/Lower Caves -7/Lower Caves -7/Data Miner -6/Proximity Caves -6/Factory (discovered 3 exits: Fac / *Low x2) -6/Lower Caves -6/Lower Caves -6/Zion -5/Proximity Caves -5/Factory (discovered 5 exits: Fac / Upp x2 / *Ext x2) -5/Extension (discovered 3 exits: *Fac x2 / *Cet) -5/Cetus -5/Archives -5/Hub_04(d) (discovered 4 exits: *Fac x4) -4/Factory -4/Armory (discovered 2 exits: Res / *Lab) -4/Lab -3/Research (discovered 2 exits: *Tes x2) -3/Testing -2/Research (discovered 2 exits: *Qua x2) -2/Quarantine (discovered 2 exits: *Acc / *Sec) -2/Section 7 -1/Access -1/Command (discovered 2 exits: Sur x2) By MAIN.C's Side History --------- Turn | Location | Event 6 | -11/Scrapyard | Discovered new exit (range 16) 1362 | -11/Scrapyard | Entered Materials 1363 | -10/Materials | Build established: Mutant 1556 | -10/Materials | Discovered new exit (range 8) 1626 | -10/Materials | Discovered new exit (range 12) 1728 | -10/Materials | Discovered new exit (range 15) 2222 | -10/Materials | Discovered new exit (range 12) 2599 | -10/Materials | Entered Mines 2693 | -10/Mines | Discovered new exit (range 7) 3185 | -10/Mines | Learned location of Zion (-6) 3230 | -10/Mines | Assisted by bots powering up and referring to "LRC-V3" 3276 | -10/Mines | Discovered new exit (range 16) 4048 | -10/Mines | Entered Materials 4048 | -9/Materials | Accompanied by 2 allies 4048 | -9/Materials | Evolved 2 slots: Utility x2 4345 | -9/Materials | Build established: Hauler-Mutant 4787 | -9/Materials | Discovered new exit (range 14) 5181 | -9/Materials | Discovered new exit (range 16) 5784 | -9/Materials | Discovered new exit (range 13) 6120 | -9/Materials | Core integrity fell below 50% 6168 | -9/Materials | Discovered new exit (range 16) 6325 | -9/Materials | Entered Mines 6402 | -9/Mines | Discovered new exit (range 10) 6443 | -9/Mines | YI-UF0 nonchalantly dropped a Grenade Launcher on the ground 6482 | -9/Mines | Destroyed YI-UF0 6510 | -9/Mines | Found Prototype Launcher 6510 | -9/Mines | Identified YI-UF0's Doublenader 6596 | -9/Mines | Excavation squad dispatched 6596 | -9/Mines | A large section of the Mines collapsed 6739 | -9/Mines | Learned Materials emergency access door positions 7006 | -9/Mines | Discovered new exit (range 9) 7815 | -9/Mines | Learned location of Storage (-8) 7835 | -9/Mines | Core integrity fell below 20% 8448 | -9/Mines | Entered Materials 8448 | -8/Materials | Evolved 2 slots: Propulsion x1, Utility x1 8744 | -8/Materials | Lost 4 parts (2u2w) 8745 | -8/Materials | Discovered new exit (range 6) 9149 | -8/Materials | Lost 3 parts (1n2w) 9539 | -8/Materials | Discovered new exit (range 10) 9570 | -8/Materials | Repaired Lrg. Storage Unit 10117 | -8/Materials | Entered Storage 10118 | -8/Storage | Identified exit to Recycling 10295 | -8/Storage | Repaired Lrg. Storage Unit 10344 | -8/Storage | Repaired Lrg. Storage Unit 10581 | -8/Storage | Destroyed 7 combat bots 10746 | -8/Storage | Discovered new exit (range 16) 10976 | -8/Storage | Assisted by bots powering up and referring to "LRC-V3" 11266 | -8/Storage | Build established: Commander-Mutant 11521 | -8/Storage | Entered Factory 11521 | -7/Factory | Accompanied by 4 allies 11521 | -7/Factory | Evolved 2 slots: Utility x2 11624 | -7/Factory | Build established: Hauler-Mutant 11721 | -7/Factory | Garrison activated, responded to threat 11789 | -7/Factory | Central database locked down 11789 | -7/Factory | Identified exit to Lower Caves 11847 | -7/Factory | Garrison activated, responded to threat 12079 | -7/Factory | Discovered new exit (range 11) 12160 | -7/Factory | System corruption reached 10% 12199 | -7/Factory | Lost 4 parts (1n3u) 12462 | -7/Factory | Fabricated Lrn. Sensor Array (x1) 12510 | -7/Factory | Fabricated Lrn. Sensor Array (x1) 12579 | -7/Factory | Garrison activated, responded to threat 12825 | -7/Factory | Local fabrication network quarantined 13756 | -7/Factory | Entered Lower Caves 13800 | -7/Lower Caves | Learned location of 1 exit from Factory 14715 | -7/Lower Caves | Attracted the attention of an 0b10 checkpoint 14967 | -7/Lower Caves | Discovered new exit (range 7) 14978 | -7/Lower Caves | Entered another Lower Caves area 15041 | -7/Lower Caves | Encountered a Warlord checkpoint 15215 | -7/Lower Caves | Learned Factory security intel 15276 | -7/Lower Caves | Attracted the attention of an 0b10 checkpoint 15565 | -7/Lower Caves | Discovered new exit (range 3) 15575 | -7/Lower Caves | Entered Data Miner 15576 | -7/Data Miner | Discovered new exit (range 6) 15605 | -7/Data Miner | Met Data Miner 15638 | -7/Data Miner | Learned location of Section 7 (-2) 15638 | -7/Data Miner | Acquired the access code to Warlord's prototype stash 15657 | -7/Data Miner | Received God Mode back door access code from Data Miner 15724 | -7/Data Miner | Entered Proximity Caves 15838 | -6/Proximity Caves | Escorted by Enhanced Grunt 15838 | -6/Proximity Caves | Attracted the attention of an 0b10 checkpoint 16029 | -6/Proximity Caves | Discovered new exit (range 14) 16057 | -6/Proximity Caves | Entered Factory 16057 | -6/Factory | Accompanied by 1 ally 16057 | -6/Factory | Evolved 2 slots: Power x1, Utility x1 16058 | -6/Factory | Identified exit to Factory 16529 | -6/Factory | Identified exit to Lower Caves 16943 | -6/Factory | Fabricated Cmb. Gravmag System (x2) 16996 | -6/Factory | Fabricated Cmb. Gravmag System (x2) 17061 | -6/Factory | Fabricated Imp. Hacking Suite (x1) 17188 | -6/Factory | Entered Lower Caves 17191 | -6/Lower Caves | Learned 12 Factory zone layouts 17389 | -6/Lower Caves | Build established: Hacker-Mutant 17437 | -6/Lower Caves | Encountered a Warlord checkpoint 17480 | -6/Lower Caves | Discovered new exit (range 11) 17495 | -6/Lower Caves | Entered another Lower Caves area 17582 | -6/Lower Caves | Encountered a Warlord checkpoint 17760 | -6/Lower Caves | Discovered new exit (range 14) 17826 | -6/Lower Caves | Entered Zion 17885 | -6/Zion | Discovered new exit (range 15) 18117 | -6/Zion | Learned location of Quarantine (-2) 18226 | -6/Zion | Found CR-A16's Pointy Stick 18261 | -6/Zion | Received a hallucinogenic algorithm 18270 | -6/Zion | Learned Factory terminal intel 18452 | -6/Zion | Entered Proximity Caves 18500 | -5/Proximity Caves | Learned Factory stockpile data 18560 | -5/Proximity Caves | Learned location of 1 exit from Factory 18595 | -5/Proximity Caves | Attracted the attention of an 0b10 checkpoint 18707 | -5/Proximity Caves | Discovered exit to Factory (range 7) 18712 | -5/Proximity Caves | Entered Factory 18712 | -5/Factory | Evolved 2 slots: Propulsion x1, Utility x1 18713 | -5/Factory | Identified exit to Factory 18716 | -5/Factory | Loaded intel: 22 terminal locations 18732 | -5/Factory | Identified exit to Upper Caves 18732 | -5/Factory | Identified exit to Extension 18900 | -5/Factory | Fabricated Exp. Signal Interpreter (x1) 18951 | -5/Factory | Fabricated Imp. Hacking Suite (x1) 18992 | -5/Factory | Spotted B-75 Beast 19004 | -5/Factory | Revealed the true nature of CR-A16's Pointy Stick 19010 | -5/Factory | Destroyed B-75 Beast 19133 | -5/Factory | Central database locked down 19138 | -5/Factory | Entered Extension 19161 | -5/Extension | Rescued a captive Derelict 19171 | -5/Extension | Rescued a captive Derelict 19177 | -5/Extension | Rescued A7 19184 | -5/Extension | Incoming investigation squad redirected 19189 | -5/Extension | Rescued a captive Derelict 19285 | -5/Extension | Rescued a captive Derelict 19549 | -5/Extension | Build established: Commander-Mutant 19573 | -5/Extension | Incoming investigation squad redirected 19606 | -5/Extension | Spotted B-75 Beast 19611 | -5/Extension | Spotted B-75 Beast 19616 | -5/Extension | Allies destroyed B-75 Beast 19617 | -5/Extension | Discovered exit to Factory (range 5) 19618 | -5/Extension | Destroyed B-75 Beast 19664 | -5/Extension | Rescued a captive Derelict 19677 | -5/Extension | Rescued a captive Derelict 19677 | -5/Extension | Central database locked down 19678 | -5/Extension | Rescued a captive Derelict 19749 | -5/Extension | Rescued a captive Derelict 19759 | -5/Extension | Rescued a captive Derelict 19761 | -5/Extension | Rescued a captive Derelict 19797 | -5/Extension | Rescued a captive Derelict 19927 | -5/Extension | Rescued a captive Derelict 19944 | -5/Extension | Discovered exit to Factory (range 10) 19944 | -5/Extension | Discovered new exit (range 6) 19950 | -5/Extension | Identified exit to Cetus 19968 | -5/Extension | Disrupted transfer network 19995 | -5/Extension | Entered Cetus 19995 | -5/Cetus | Accompanied by 17 allies (A7) 20000 | -5/Cetus | Acquired a Cetus Manufacturing Module code from A7 20012 | -5/Cetus | Spotted Cetus Guard 20012 | -5/Cetus | Spotted Cetus Guard 20014 | -5/Cetus | Spotted Cetus Guard 20014 | -5/Cetus | Spotted Cetus Guard 20024 | -5/Cetus | Destroyed Cetus Guard 20026 | -5/Cetus | Destroyed Cetus Guard 20028 | -5/Cetus | Destroyed Cetus Guard 20028 | -5/Cetus | Allies destroyed Cetus Guard 20053 | -5/Cetus | Cetus Manufacturing Module disabled 20103 | -5/Cetus | Failed to start Cetus Manufacturing Module 20136 | -5/Cetus | Escorted A7 to Cetus Mainframe 20213 | -5/Cetus | Destroyed A7 20217 | -5/Cetus | Found Prototype Protection 20217 | -5/Cetus | Identified Med. Regenerative Plating 20229 | -5/Cetus | Extracted ID and sensor layout for unrecognized location from A7's data core 20255 | -5/Cetus | Discovered new exit (range 15) 20264 | -5/Cetus | Identified exit to Archives 20411 | -5/Cetus | Entered Archives 20411 | -5/Archives | Accompanied by 10 allies 20421 | -5/Archives | Met Zhirov 20425 | -5/Archives | Discovered new exit (range 15) 20427 | -5/Archives | Reinforcements dispatched to Archives 20434 | -5/Archives | Identified exit to Hub_04(d) 20465 | -5/Archives | Entered Hub_04(d) 20465 | -5/Hub_04(d) | Accompanied by 10 allies 20544 | -5/Hub_04(d) | Build established: Hacker-Mutant 20816 | -5/Hub_04(d) | Network Hub disabled 20824 | -5/Hub_04(d) | Entered Factory 20824 | -4/Factory | Evolved 2 slots: Utility x2 20926 | -4/Factory | Spotted B-86 Titan 20929 | -4/Factory | Destroyed B-86 Titan 20986 | -4/Factory | Discovered new exit (range 15) 21017 | -4/Factory | Repaired Lrg. Storage Unit 21095 | -4/Factory | Build established: Wizard-Mutant 21200 | -4/Factory | Fabricated Cmb. Linear Gravjet (x2) 21209 | -4/Factory | Local fabrication network quarantined 21275 | -4/Factory | Fabricated Cmb. Linear Gravjet (x2) 21352 | -4/Factory | Identified exit to Armory 21352 | -4/Factory | Entered Armory 21406 | -4/Armory | Fabricated Imp. Armor Integrity Analyzer (x1) 21433 | -4/Armory | Fabricated Exp. Sensor Array (x1) 21479 | -4/Armory | Fabricated Cmb. Linear Gravjet (x2) 21515 | -4/Armory | Fabricated Exp. Sensor Array (x1) 21530 | -4/Armory | Fabricated Imp. Hacking Suite (x1) 21911 | -4/Armory | System corruption reached 10% 21957 | -4/Armory | Lost 3 parts (1p1u1w) 21999 | -4/Armory | Found Unknown Launcher 21999 | -4/Armory | Identified Gamma Bomb Array 22079 | -4/Armory | Discovered new exit (range 20) 22084 | -4/Armory | Discovered new exit (range 11) 22156 | -4/Armory | Identified exit to Lab 22157 | -4/Armory | Entered Lab 22218 | -4/Lab | Build established: Hacker-Mutant 22253 | -4/Lab | Discovered new exit (range 9) 22256 | -4/Lab | Identified exit to Research 22258 | -4/Lab | Hidden lab's door opened automatically 22258 | -4/Lab | Sensor layout match revealed 22259 | -4/Lab | Gained access to the hidden lab's interior 22276 | -4/Lab | Found Prototype Energy Gun 22276 | -4/Lab | Identified Hyp. EM Gauss Rifle 22278 | -4/Lab | Found Prototype Energy Gun 22278 | -4/Lab | Identified Tachyon Dispersion Ray 22282 | -4/Lab | Found Prototype Device 22282 | -4/Lab | Identified AEGIS Remote Shield 22302 | -4/Lab | Found Alien Artifact 22302 | -4/Lab | Identified Core Expander 22302 | -4/Lab | Installed Core Expander, added new Power slot 22311 | -4/Lab | Found Alien Artifact 22311 | -4/Lab | Identified Integrated Dissipator 22311 | -4/Lab | Installed Integrated Dissipator, increased core heat dissipation (+20) 22332 | -4/Lab | Found Prototype Hackware 22381 | -4/Lab | Found Alien Artifact 22405 | -4/Lab | Entered Research 22405 | -3/Research | Evolved 2 slots: Utility x2 22465 | -3/Research | Identified exit to Testing 22778 | -3/Research | Repaired Exp. Sensor Array? 22779 | -3/Research | Spotted B-86 Titan 22820 | -3/Research | Destroyed B-86 Titan 22882 | -3/Research | Entered Testing 22882 | -3/Testing | Accompanied by 1 ally 22882 | -3/Testing | Identified Quantum Router 22890 | -3/Testing | Spotted WC-T2K(K) 22890 | -3/Testing | Spotted DF-IHP(K) 22893 | -3/Testing | Spotted 0M-4G2(K) 22893 | -3/Testing | Spotted Alpha 7 22893 | -3/Testing | Rewired 0M-4G2(K) 22899 | -3/Testing | Rewired WC-T2K(K) 22919 | -3/Testing | Identified exit to Research 22921 | -3/Testing | Found Prototype Ballistic Gun 22922 | -3/Testing | Identified Multirail 23086 | -3/Testing | Fabricated Exp. Target Analyzer (x1) 23122 | -3/Testing | Fabricated Hyp. Railgun (x2) 23168 | -3/Testing | Destroyed Alpha 7 23169 | -3/Testing | Incoming investigation squad redirected 23186 | -3/Testing | Build established: Wizard-Mutant 23283 | -3/Testing | Local fabrication network quarantined 23415 | -3/Testing | Found Prototype Energy Cannon 23415 | -3/Testing | Identified Cld. Nova Cannon 23806 | -3/Testing | Found Prototype Hackware 23820 | -3/Testing | Entered Research 23820 | -2/Research | Evolved 2 slots: Utility x2 23984 | -2/Research | Identified exit to Quarantine 24271 | -2/Research | Fabricated Exp. Hacking Suite (x1) 24320 | -2/Research | Fabricated Exp. Hacking Suite (x1) 24566 | -2/Research | Fabricated Adv. Armor Integrity Analyzer? 24577 | -2/Research | Identified Ghost Barrier 24585 | -2/Research | Fabricated Exp. Sensor Array? 24817 | -2/Research | Local fabrication network quarantined 24868 | -2/Research | Entered Quarantine 24881 | -2/Quarantine | Found Alien Impact Weapon 24983 | -2/Quarantine | Found Alien Artifact 24999 | -2/Quarantine | Identified exit to Access 25099 | -2/Quarantine | Found Alien Artifact 25193 | -2/Quarantine | Cryocooling Duct disabled 25208 | -2/Quarantine | Ambient heat levels rising (+20) 25208 | -2/Quarantine | Non-combat units ordered to evacuate 25369 | -2/Quarantine | Identified Transdimensional Reconstructor 25369 | -2/Quarantine | Identified Subatomic Replicator 25369 | -2/Quarantine | Identified Core Reset Matrix 25390 | -2/Quarantine | Build established: Hacker-Mutant 25645 | -2/Quarantine | Cryocooling Duct disabled 25660 | -2/Quarantine | Ambient heat levels rising (+20) 25660 | -2/Quarantine | Combat units ordered to evacuate 25737 | -2/Quarantine | Identified Core Stripper 25749 | -2/Quarantine | Spotted Fortress 25760 | -2/Quarantine | Quarantine Guard activated 25763 | -2/Quarantine | Destroyed Fortress 25772 | -2/Quarantine | Found Prototype Device 25777 | -2/Quarantine | Found Prototype Reactor 25777 | -2/Quarantine | Identified Vortex Chain Reactor 25784 | -2/Quarantine | Found Prototype Device 25785 | -2/Quarantine | Identified EM Dispersion Field 25787 | -2/Quarantine | Identified Exp. Force Field 25823 | -2/Quarantine | Discovered new exit (range 5) 25824 | -2/Quarantine | Identified exit to Section 7 25825 | -2/Quarantine | Entered Section 7 25999 | -2/Section 7 | Scanned by Researcher 26036 | -2/Section 7 | Found Alien Artifact 26036 | -2/Section 7 | Identified Integrated Reactor 26036 | -2/Section 7 | Installed Integrated Reactor, increased core energy generation (+10) 26150 | -2/Section 7 | Spotted S7 Guard 26158 | -2/Section 7 | Found Alien Artifact 26192 | -2/Section 7 | Found Integrated Reactor 26192 | -2/Section 7 | Installed Integrated Reactor, increased core energy generation (+10) 26203 | -2/Section 7 | Spotted S7 Guard 26205 | -2/Section 7 | Found Alien Artifact 26235 | -2/Section 7 | Entered Access 26235 | -1/Access | Evolved 2 slots: Utility x1, Weapon x1 26292 | -1/Access | Identified Integrated Heat Negator 26292 | -1/Access | Identified Integrated Singularity Reactor 26292 | -1/Access | Installed Integrated Singularity Reactor, increased core energy generation (+20) 26294 | -1/Access | Installed Integrated Heat Negator, increased core heat dissipation (+40) 26307 | -1/Access | Identified exit to Command 26309 | -1/Access | Spotted B-99 Colossus 26322 | -1/Access | Destroyed B-99 Colossus 26325 | -1/Access | Found Multirail 26329 | -1/Access | Found Multirail 26511 | -1/Access | Spotted B-99 Colossus 26519 | -1/Access | Destroyed B-99 Colossus 26522 | -1/Access | Found Multirail 26525 | -1/Access | Spotted B-99 Colossus 26525 | -1/Access | Found Multirail 26534 | -1/Access | Entered Command 26692 | -1/Command | Spotted B-99 Colossus 26695 | -1/Command | Destroyed 10 combat bots 27037 | -1/Command | Spotted Combat Programmer 27038 | -1/Command | Spotted M Guard 27048 | -1/Command | Destroyed M Guard 27049 | -1/Command | Destroyed M Guard 27060 | -1/Command | Spotted Combat Programmer 27082 | -1/Command | Destroyed Combat Programmer 27087 | -1/Command | Destroyed Combat Programmer 27087 | -1/Command | Destroyed all MAIN.C guards 27097 | -1/Command | Found Prototype Reactor 27097 | -1/Command | Identified Zero-point Reactor 27099 | -1/Command | Found Zero-point Reactor 27102 | -1/Command | Found Zero-point Reactor 27116 | -1/Command | Found AEGIS Remote Shield 27216 | -1/Command | Met MAIN.C 27220 | -1/Command | 0b10 Conduit disabled 27231 | -1/Command | System corruption reached 10% 27244 | -1/Command | Destroyed MAIN.C Shell 27246 | -1/Command | Surrendered to MAIN.C 27246 | -1/Command | Loaded intel: 62 machine locations 27246 | -1/Command | Loaded intel: 97 trap records 27246 | -1/Command | Identified exit to Surface 27246 | -1/Command | Discovered exit to Surface (range 84) 27246 | -1/Command | Discovered exit to Surface (range 37) 27269 | -1/Command | Found Prototype Ballistic Gun 27269 | -1/Command | Identified Hyp. Multirail 27272 | -1/Command | Used Subatomic Replicator to replicate Hyp. Multirail 27281 | -1/Command | Found Prototype Processor 27281 | -1/Command | Identified Exp. Melee Analysis Suite 27284 | -1/Command | Found Prototype Device 27284 | -1/Command | Identified System Purifier 27286 | -1/Command | Found Prototype Device 27286 | -1/Command | Identified Exp. Cloaking Device 27290 | -1/Command | Found Multirail 27293 | -1/Command | Found Multirail 27299 | -1/Command | Found Zero-point Reactor 27348 | -1/Command | MAIN.C activated Command garrisons 27388 | -1/Command | Unknown forces attacked Command 27388 | -1/Command | Spotted EQ-002 27388 | -1/Command | Spotted EQ-005 27388 | -1/Command | Spotted EQ-006 27388 | -1/Command | Spotted EQ-000 27388 | -1/Command | Spotted EQ-004 27389 | -1/Command | Spotted EQ-001 27392 | -1/Command | Spotted EQ-003 27479 | -1/Command | Spotted EQ-018 27479 | -1/Command | Spotted EQ-020 27479 | -1/Command | Spotted EQ-034 27479 | -1/Command | Spotted EQ-019 27499 | -1/Command | Destroyed EQ-020 27506 | -1/Command | Spotted EQ-021 27507 | -1/Command | Found Exp. Targeting Computer 27513 | -1/Command | Destroyed EQ-018 27526 | -1/Command | Destroyed EQ-021 27527 | -1/Command | Spotted EQ-037 27538 | -1/Command | Destroyed EQ-037 27552 | -1/Command | Found Prototype Device 27553 | -1/Command | Identified EM Disruption Field 27558 | -1/Command | Found Prototype Processor 27558 | -1/Command | Identified Exp. Core Analyzer 27582 | -1/Command | Spotted EQ-043 27582 | -1/Command | Spotted EQ-038 27582 | -1/Command | Spotted EQ-040 27582 | -1/Command | Spotted EQ-047 27598 | -1/Command | Spotted EQ-044 27608 | -1/Command | Destroyed EQ-044 27614 | -1/Command | Spotted EQ-039 27622 | -1/Command | Spotted EQ-023 27630 | -1/Command | Spotted EQ-008 27630 | -1/Command | Spotted EQ-041 27630 | -1/Command | Spotted EQ-022 27630 | -1/Command | Spotted EQ-049 27646 | -1/Command | Destroyed EQ-008 27674 | -1/Command | Found Zero-point Reactor 27692 | -1/Command | Spotted EQ-062 27692 | -1/Command | Spotted EQ-061 27693 | -1/Command | Spotted EQ-063 27701 | -1/Command | Destroyed EQ-061 27726 | -1/Command | Found Exp. Targeting Computer 27729 | -1/Command | Spotted EQ-071 27729 | -1/Command | Spotted EQ-068 27729 | -1/Command | Spotted EQ-078 27733 | -1/Command | Spotted EQ-073 27733 | -1/Command | Spotted EQ-082 27769 | -1/Command | Found Exp. Targeting Computer 27786 | -1/Command | Spotted EQ-087 27786 | -1/Command | Spotted EQ-088 27786 | -1/Command | Spotted EQ-086 27786 | -1/Command | Spotted EQ-085 27786 | -1/Command | Spotted EQ-084 27801 | -1/Command | Destroyed EQ-086 27809 | -1/Command | Attackers retreated from Command 27810 | *** | Fortifying 0b10! Last Messages --------------- 27804_ Slug penetrates EQ-085. 27804_ EQ-085 suffers critical hit. 27804_ Slug penetrates K-01 Serf. 27804_ Slug penetrates EQ-085. 27804_ Slug penetrates Reinforced Barrier. 27806_ MAIN.C suffers critical hit. 27806_ Slug penetrates MAIN.C. 27807_ Slug penetrates EQ-085. 27807_ EQ-085 suffers critical hit. 27807_ Destroyed Lgt. Quantum Reactor. 27807_ Slug penetrates EQ-085. 27808_ EQ-085 destroyed. 27809_ ALERT: Enemy forces retreating. MAIN.C: I admit your assistance was pivotal here. It looks like I was right to trust you. This attack appears to have been designed to merely test our defenses, although it was nearly effective enough to force me to take the conflict to the next level. Investigating the origins of these bots should be one of our highest priorities... Map ----- +----------------------------------------------------+ | ??????????????????????????????????????#?#?#????### | | ??????????????????????????????????????#?#?#??????# | | ??????????????????????????????????????#?#?#??????# | | ??????????????????????????????????????#?#?#??????# | | ######????????????????????????????????#?#?#??????# | | #????????????????????????????????#?#?#??????# | | ###??????????????????????????????#?#?#??????? | | """ ""#??????????????????????????????#?#?#??????? | | """ ""#??????????????????????????????#?#?#??????? | | R" ""#??????????????????????????????#?#?#??????? | | """ T#??????????????????????????????#?#?#??????? | | ""#??????????????????????????????#?#?#??????? | | ""#??????????????????????????????#?#?#??????? | | ""#??????????????????????????????#?#?#??????? | | ###??????????????????????????????#?#?#??????? | | #?###########################????#?#?#??????? | | #?#??????###????????????????#????#?#?#??????? | | ##"###?#?######;################?#????#?#?#??????? | | # #??#?# % ################### | | # #??#?# !/% #?#???????????????# | | # #??#?#"" *]%!! ! ################### | | # #??#?# != *!!!!/= !! | | # #??#?# %!%!==*% =%* = = | | # #??#?# M !!]!!=!%[s = !%=*%= | | # #??#?# =%! ==%!%%*################### | | # #??#?# |!%!![@!%* #?#???????????????# | | # *=#??#?# !! =!!!!%* ==% ################### | | # !%#??#?# =%!!%*% =[!=%! #?#????#?#?#??????# | | # !!#??#?# =!! ]! %= !%!* #?#????#?#?#??????# | | + ####?# % !* =! "#?#????#?#?#??????# | | # # ##?# ] % *7 #?#????#?#?#??????# | | # ! #?# =%|== #?#????#?#?#??????# | | ####[ !!k = ###????#?#?#??????# | | # ! %=%!* ! = = ! %; #????#?#?#??????# | | ! ! !=% ! ==! !%! ###????#?#?#??????# | | **]%%[=/ ! !!= #?#????#?#?#??????# | | %#### ! [ * * #?#????#?#?#??????? | | * #?#* =!] " " "#?#????#?#?#??????? | | ###?# [ % #?#????#?#?#??????? | | *###?#######################?#????#?#?#??????? | | #?????????????????????????#????#?#?#??????? | | # ###########################????#?#?#??????? | | ##??????????????????????????????#?#?#??????? | | ##???????????????????????????????#?#?#??????? | | = #????????????????????????????????#?#?#??????? | | = ^#????????????????????????????????#?#?#??????? | | !! #????????????????????????????????#?#?#??????? | | ! #????????????????????????????????#?#?#??????? | | #????????????????????????????????#?#?#??????? | | #????????????????????????????????#?#?#??????? | +----------------------------------------------------+ Best States ------------- Heat Dissipation 150 Energy Generation 129 Energy Capacity 4250 Matter Stores 1300 Matter Capacity 1300 Sight Range 23 Robot Scan Range 30 Terrain Scan Density 10 Jamming Range 16 Armor Coverage 450 Resistance: KI 20 Resistance: TH 15 Resistance: EM 75 Core Shielding 40 Weapon Cycling 25 Phase Shifting 15 Evasion (%) 70 Targeting Accuracy 40 Target Analysis 12 Core Analysis 15 Armor Integrity Analysis 66 Recoil Reduction 2 Offensive Hacking 50 Defensive Hacking 45 Item Schematics ----------------- Adv. Sensor Array | -8/Storage | Hacked Lrn. Sensor Array | -7/Factory | Hacked Combat Drone Bay | -7/Data Miner | Free Lgt. Regenerative Plating | -7/Data Miner | Free Cmb. Gravmag System | -7/Data Miner | Free Triangulator | -7/Data Miner | Free Kinetic Spear | -7/Data Miner | Free Imp. Hacking Suite | -6/Factory | Hacked Adv. Transmission Jammer | -6/Factory | Hacked Beamcaster | -6/Zion | Free Hvy. Beamcaster | -6/Zion | Free Hvy. Riot Gun | -6/Zion | Free Battle Rifle | -6/Zion | Free Flamer | -6/Zion | Free Enh. Flamer | -6/Zion | Free Phasing Sabre | -6/Zion | Free Exp. Signal Interpreter | -5/Factory | Hacked Exp. Sensor Array | -5/Factory | Hacked Hyp. Gauss Rifle | -5/Extension | Hacked Imp. Armor Integrity Analyzer | -5/Extension | Hacked Cmb. Linear Gravjet | -4/Factory | Hacked Hyp. Railgun | -4/Armory | Hacked Mni. Fusion Reactor | -3/Research | Hacked Exp. Hacking Suite | -3/Research | Hacked Exp. Target Analyzer | -3/Research | Hacked Exp. Targeting Computer | -3/Research | Hacked Helical Railgun | -3/Testing | Hacked Adv. Armor Integrity Analyzer | -2/Research | Hacked Graviton Reactor | -2/Research | Hacked Adv. Phase Shifter | -2/Quarantine | Hacked Robot Schematics ------------------ S-27 Virus | -7/Data Miner | Free G-50 Soldier | -7/Data Miner | Free G-67 Veteran | -7/Data Miner | Free L-41 Fighter | -7/Data Miner | Free H-66 Slayer | -7/Data Miner | Free P-70 Sage | -7/Data Miner | Free I-36 Angel | -7/Data Miner | Free Fabricated ------------ Lrn. Sensor Array | x1 | -7/Factory Lrn. Sensor Array | x1 | -7/Factory Cmb. Gravmag System | x2 | -6/Factory Cmb. Gravmag System | x2 | -6/Factory Imp. Hacking Suite | x1 | -6/Factory Exp. Signal Interpreter | x1 | -5/Factory Imp. Hacking Suite | x1 | -5/Factory Cmb. Linear Gravjet | x2 | -4/Factory Cmb. Linear Gravjet | x2 | -4/Factory Imp. Armor Integrity Analyzer | x1 | -4/Armory Exp. Sensor Array | x1 | -4/Armory Cmb. Linear Gravjet | x2 | -4/Armory Exp. Sensor Array | x1 | -4/Armory Imp. Hacking Suite | x1 | -4/Armory Exp. Target Analyzer | x1 | -3/Testing Hyp. Railgun | x2 | -3/Testing Exp. Hacking Suite | x1 | -2/Research Exp. Hacking Suite | x1 | -2/Research Adv. Armor Integrity Analyzer | x1 | -2/Research Exp. Sensor Array | x1 | -2/Research Alien Tech Used ----------------- Core Expander Integrated Dissipator Core Stripper Integrated Reactor Integrated Singularity Reactor Integrated Heat Negator Subatomic Replicator Achievements -------------- None Challenges ------------ None Game ------ Seed ThermalSupercompositeCasing Manual? 0 Play Time 04:24:50 Cumulative 1092.5 hours Start 2020.09.18 @ 14:59:01 End 2020.09.18 @ 21:35:54 Sessions 1 Manual Loads 0 Difficulty Rogue Special Mode None Game No. 355 Rogue 355 Adventurer 0 Explorer 0 Win Type 8 Total 79 Types 14/9/35/5/1/2/12/0/1 Lore% 95 Gallery% 95 Achievement% 85 Wizard Run 0 Options --------- ASCII 0 Keyboard 0 Movement Numpad Keybinds 0 Fullscreen 1 Font 18/SmallcapsGlow Map View 76x50 Tactical HUD 1 Map Filters NONE Filters NONE Steam 1 RUN: 0d30783d-b676-4006-9b68-ca13ab5c68ff